Invoice_Payment_Date,Org_Level_2_Desc,Supplier_Name,Nominal_Desc, Invoice_Line_Net_Amount ,Internal_Category_Code
09/01/2017,CAPITAL CC,Muse Developments Ltd,"MAINTENANCE - EQUIPMENT, FURNITURE AND MATERIALS"," 3,909,902.00 ","Works - Construction, Repair & Maint.Architect.NA",Q4
22/02/2017,CAPITAL CC,Muse Developments Ltd,"MAINTENANCE - EQUIPMENT, FURNITURE AND MATERIALS"," 3,650,922.00 ","Works - Construction, Repair & Maint.Architect.NA",Q4
13/03/2017,CAPITAL CC,Muse Developments Ltd,"MAINTENANCE - EQUIPMENT, FURNITURE AND MATERIALS"," 3,338,161.00 ","Works - Construction, Repair & Maint.Architect.NA",Q4
17/02/2017,BUSINESS & CUSTOMER SERVICES,Transport Trading Ltd,DIRECT TRANSPORT," 3,282,642.00 ",Public Transport.Passenger Transport.NA,Q4
09/02/2017,PUBLIC HEALTH,NHS Lambeth Clinical Commissioning Group,PAYMENT TO HEALTH AUTHORITIES," 1,858,492.74 ",Healthcare.Public Health.NA,Q4
21/02/2017,"NEIGHBOURHOODS, ENVIRONMENT & EMPLOYMENT",Western Riverside Waste Authority,WASTE DISPOSAL COSTS," 1,156,852.90 ",Environmental Services.Waste Management.NA,Q4
27/02/2017,CAPITAL CC,Mears Ltd,FACILITIES MANAGEMENT," 1,145,287.74 ","Works - Construction, Repair & Maint.Buildings.Repair & Maintenance",Q4
24/01/2017,"NEIGHBOURHOODS, ENVIRONMENT & EMPLOYMENT",Western Riverside Waste Authority,WASTE DISPOSAL COSTS," 1,135,191.57 ",Environmental Services.Waste Management.NA,Q4
21/03/2017,"NEIGHBOURHOODS, ENVIRONMENT & EMPLOYMENT",Veolia ES (UK) Ltd,WASTE DISPOSAL COSTS," 1,041,557.00 ",Environmental Services.Waste Management.NA,Q4
22/03/2017,"NEIGHBOURHOODS, ENVIRONMENT & EMPLOYMENT",Western Riverside Waste Authority,WASTE DISPOSAL COSTS," 1,008,848.11 ",Environmental Services.Waste Management.NA,Q4
07/03/2017,ADULT SOCIAL CARE,NHS Lambeth Clinical Commissioning Group,PAYMENT TO HEALTH AUTHORITIES," 982,238.82 ",Healthcare.Public Health.NA,Q4
10/03/2017,PUBLIC HEALTH,South London & Maudsley (nhs) Trust,PAYMENT TO HEALTH AUTHORITIES," 975,537.25 ",Healthcare.Public Health.NA,Q4
26/01/2017,PUBLIC HEALTH,NHS Lambeth Clinical Commissioning Group,PAYMENT TO HEALTH AUTHORITIES," 929,246.37 ",Healthcare.Public Health.NA,Q4
22/03/2017,CAPITAL CC,Keepmoat Regeneration Ltd,"MAINTENANCE - EQUIPMENT, FURNITURE AND MATERIALS"," 883,272.34 ","Works - Construction, Repair & Maint.Buildings.Construction",Q4
23/01/2017,"STRATEGIC HOUSING, REGENERATION & COMMUNITIES (HRA)",Regenter Myatts Field North Ltd,"MAINTENANCE - EQUIPMENT, FURNITURE AND MATERIALS"," 835,242.02 ","Works - Construction, Repair & Maint.Buildings.Construction",Q4
09/03/2017,"STRATEGIC HOUSING, REGENERATION & COMMUNITIES (HRA)",Regenter Myatts Field North Ltd,"MAINTENANCE - EQUIPMENT, FURNITURE AND MATERIALS"," 818,974.27 ","Works - Construction, Repair & Maint.Buildings.Construction",Q4
19/01/2017,CAPITAL CC,Keepmoat Regeneration Ltd,"MAINTENANCE - EQUIPMENT, FURNITURE AND MATERIALS"," 789,495.85 ","Works - Construction, Repair & Maint.Buildings.Construction",Q4
16/02/2017,"STRATEGIC HOUSING, REGENERATION & COMMUNITIES (HRA)",Regenter Myatts Field North Ltd,"MAINTENANCE - EQUIPMENT, FURNITURE AND MATERIALS"," 754,412.15 ","Works - Construction, Repair & Maint.Buildings.Construction",Q4
03/01/2017,"STRATEGIC HOUSING, REGENERATION & COMMUNITIES (HRA)",Loughborough EMB Ltd,PRIVATE CONTRACTORS PAYMENT - OTHER," 719,658.64 ",Housing Management.Arms Length Management Organisations.NA,Q4
22/03/2017,CAPITAL CC,Mears Ltd,FACILITIES MANAGEMENT," 661,173.59 ","Works - Construction, Repair & Maint.Buildings.Repair & Maintenance",Q4
28/02/2017,CAPITAL CC,Keepmoat Regeneration Ltd,"MAINTENANCE - EQUIPMENT, FURNITURE AND MATERIALS"," 632,442.51 ","Works - Construction, Repair & Maint.Buildings.Construction",Q4
04/01/2017,HUMAN RESOURCES & ORGANISATIONAL DEVELOPMENT,Matrix SCM Ltd,AGENCY STAFF," 605,879.94 ",Human Resources.Temporary & Agency Staff.NA,Q4
22/03/2017,CAPITAL CC,T Brown Group Ltd_d,BUILDING ALTERATIONS AND MATERIALS," 602,166.28 ",Building Construction Materials.Heating & Air Conditioning.NA,Q4
20/02/2017,HUMAN RESOURCES & ORGANISATIONAL DEVELOPMENT,Matrix SCM Ltd,AGENCY STAFF," 580,050.53 ",Human Resources.Temporary & Agency Staff.NA,Q4
22/03/2017,CAPITAL CC,Mears Ltd,FACILITIES MANAGEMENT," 548,936.09 ","Works - Construction, Repair & Maint.Buildings.Repair & Maintenance",Q4
23/03/2017,HUMAN RESOURCES & ORGANISATIONAL DEVELOPMENT,Matrix SCM Ltd,AGENCY STAFF," 545,869.92 ",Human Resources.Temporary & Agency Staff.NA,Q4
09/03/2017,HUMAN RESOURCES & ORGANISATIONAL DEVELOPMENT,Matrix SCM Ltd,AGENCY STAFF," 537,757.61 ",Human Resources.Temporary & Agency Staff.NA,Q4
25/01/2017,"NEIGHBOURHOODS, ENVIRONMENT & EMPLOYMENT",Veolia ES (UK) Ltd,REFUSE COLLECTION," 535,448.32 ",Environmental Services.Waste Management.Waste Collection,Q4
22/02/2017,"NEIGHBOURHOODS, ENVIRONMENT & EMPLOYMENT",Veolia ES (UK) Ltd,REFUSE COLLECTION," 535,448.32 ",Environmental Services.Waste Management.Waste Collection,Q4
21/03/2017,"NEIGHBOURHOODS, ENVIRONMENT & EMPLOYMENT",Veolia ES (UK) Ltd,REFUSE COLLECTION," 535,448.32 ",Environmental Services.Waste Management.Waste Collection,Q4
14/03/2017,CAPITAL CC,Mears Ltd,FACILITIES MANAGEMENT," 534,196.19 ","Works - Construction, Repair & Maint.Buildings.Repair & Maintenance",Q4
23/02/2017,HUMAN RESOURCES & ORGANISATIONAL DEVELOPMENT,Matrix SCM Ltd,AGENCY STAFF," 527,317.60 ",Human Resources.Temporary & Agency Staff.NA,Q4
04/01/2017,HUMAN RESOURCES & ORGANISATIONAL DEVELOPMENT,Matrix SCM Ltd,AGENCY STAFF," 525,779.27 ",Human Resources.Temporary & Agency Staff.NA,Q4
31/01/2017,HUMAN RESOURCES & ORGANISATIONAL DEVELOPMENT,Matrix SCM Ltd,AGENCY STAFF," 515,294.34 ",Human Resources.Temporary & Agency Staff.NA,Q4
31/01/2017,CAPITAL CC,Mears Ltd,FACILITIES MANAGEMENT," 514,169.17 ","Works - Construction, Repair & Maint.Buildings.Repair & Maintenance",Q4
25/01/2017,"NEIGHBOURHOODS, ENVIRONMENT & EMPLOYMENT",Veolia ES (UK) Ltd,STREET SWEEPING," 503,862.52 ",Environmental Services.Street Cleansing.NA,Q4
22/02/2017,"NEIGHBOURHOODS, ENVIRONMENT & EMPLOYMENT",Veolia ES (UK) Ltd,STREET SWEEPING," 503,862.52 ",Environmental Services.Street Cleansing.NA,Q4
21/03/2017,"NEIGHBOURHOODS, ENVIRONMENT & EMPLOYMENT",Veolia ES (UK) Ltd,STREET SWEEPING," 503,862.52 ",Environmental Services.Street Cleansing.NA,Q4
10/02/2017,HUMAN RESOURCES & ORGANISATIONAL DEVELOPMENT,Matrix SCM Ltd,AGENCY STAFF," 501,881.85 ",Human Resources.Temporary & Agency Staff.NA,Q4
08/03/2017,BUSINESS & CUSTOMER SERVICES,Capita Business Services Ltd,CONSULTANCY FEES," 499,899.73 ",Consultancy.Business.NA,Q4
16/03/2017,HUMAN RESOURCES & ORGANISATIONAL DEVELOPMENT,Matrix SCM Ltd,AGENCY STAFF," 498,595.73 ",Human Resources.Temporary & Agency Staff.NA,Q4
02/03/2017,HUMAN RESOURCES & ORGANISATIONAL DEVELOPMENT,Matrix SCM Ltd,AGENCY STAFF," 498,170.28 ",Human Resources.Temporary & Agency Staff.NA,Q4
07/02/2017,BUSINESS & CUSTOMER SERVICES,Capita Business Services Ltd,CONSULTANCY FEES," 496,692.44 ",Consultancy.Business.NA,Q4
02/02/2017,HUMAN RESOURCES & ORGANISATIONAL DEVELOPMENT,Matrix SCM Ltd,AGENCY STAFF," 480,160.13 ",Human Resources.Temporary & Agency Staff.NA,Q4
08/03/2017,CAPITAL CC,Breyer Group Plc_d,"MAINTENANCE - EQUIPMENT, FURNITURE AND MATERIALS"," 454,773.08 ","Works - Construction, Repair & Maint.Buildings.Construction",Q4
22/03/2017,CAPITAL CC,Breyer Group Plc_d,"MAINTENANCE - EQUIPMENT, FURNITURE AND MATERIALS"," 441,490.45 ","Works - Construction, Repair & Maint.Buildings.Construction",Q4
06/01/2017,CAPITAL CC,Breyer Group Plc_d,"MAINTENANCE - EQUIPMENT, FURNITURE AND MATERIALS"," 435,481.32 ","Works - Construction, Repair & Maint.Buildings.Construction",Q4
17/01/2017,CAPITAL CC,Mears Ltd,FACILITIES MANAGEMENT," 427,453.99 ","Works - Construction, Repair & Maint.Buildings.Repair & Maintenance",Q4
13/02/2017,CAPITAL CC,Breyer Group Plc_d,"MAINTENANCE - EQUIPMENT, FURNITURE AND MATERIALS"," 409,288.93 ","Works - Construction, Repair & Maint.Buildings.Construction",Q4
11/01/2017,HUMAN RESOURCES & ORGANISATIONAL DEVELOPMENT,Matrix SCM Ltd,AGENCY STAFF," 400,617.91 ",Human Resources.Temporary & Agency Staff.NA,Q4
10/03/2017,CAPITAL CC,Mears Ltd,FACILITIES MANAGEMENT," 395,225.84 ","Works - Construction, Repair & Maint.Buildings.Repair & Maintenance",Q4
31/01/2017,HUMAN RESOURCES & ORGANISATIONAL DEVELOPMENT,Matrix SCM Ltd,AGENCY STAFF," 394,784.74 ",Human Resources.Temporary & Agency Staff.NA,Q4
20/03/2017,CAPITAL CC,Breyer Group Plc_d,"MAINTENANCE - EQUIPMENT, FURNITURE AND MATERIALS"," 388,764.24 ","Works - Construction, Repair & Maint.Buildings.Construction",Q4
03/02/2017,CAPITAL CC,AJS Ltd_d,BUILDING ALTERATIONS AND MATERIALS," 384,427.19 ",Building Construction Materials.Electrical.NA,Q4
22/03/2017,CAPITAL CC,Keepmoat Regeneration Ltd,"MAINTENANCE - EQUIPMENT, FURNITURE AND MATERIALS"," 379,523.35 ","Works - Construction, Repair & Maint.Buildings.Construction",Q4
13/02/2017,CAPITAL CC,Mears Ltd,FACILITIES MANAGEMENT," 372,843.02 ","Works - Construction, Repair & Maint.Buildings.Repair & Maintenance",Q4
23/02/2017,"NEIGHBOURHOODS, ENVIRONMENT & EMPLOYMENT",CVU_d,"MAINTENANCE - EQUIPMENT, FURNITURE AND MATERIALS"," 368,831.19 ","Works - Construction, Repair & Maint.Roads.Repair & Maintenance",Q4
09/03/2017,PUBLIC HEALTH,Kings College Hospital NHS Foundation Trust,PAYMENT TO HEALTH AUTHORITIES," 357,054.75 ",Healthcare.Public Health.NA,Q4
03/01/2017,PUBLIC HEALTH,Kings College Hospital NHS Foundation Trust,PAYMENT TO HEALTH AUTHORITIES," 355,071.00 ",Healthcare.Public Health.NA,Q4
22/02/2017,PUBLIC HEALTH,Kings College Hospital NHS Foundation Trust,PAYMENT TO HEALTH AUTHORITIES," 355,071.00 ",Healthcare.Public Health.NA,Q4
03/01/2017,PUBLIC HEALTH,Kings College Hospital NHS Foundation Trust,PAYMENT TO HEALTH AUTHORITIES," 355,070.50 ",Healthcare.Public Health.NA,Q4
03/01/2017,PUBLIC HEALTH,Kings College Hospital NHS Foundation Trust,PAYMENT TO HEALTH AUTHORITIES," 355,070.50 ",Healthcare.Public Health.NA,Q4
03/01/2017,PUBLIC HEALTH,Kings College Hospital NHS Foundation Trust,PAYMENT TO HEALTH AUTHORITIES," 355,070.00 ",Healthcare.Public Health.NA,Q4
03/01/2017,PUBLIC HEALTH,Kings College Hospital NHS Foundation Trust,PAYMENT TO HEALTH AUTHORITIES," 355,070.00 ",Healthcare.Public Health.NA,Q4
21/02/2017,PUBLIC HEALTH,Guys & St Thomas NHS Foundation Trust,PAYMENT TO HEALTH AUTHORITIES," 343,117.75 ",Healthcare.Public Health.NA,Q4
21/02/2017,PUBLIC HEALTH,Guys & St Thomas NHS Foundation Trust,PAYMENT TO HEALTH AUTHORITIES," 343,117.75 ",Healthcare.Public Health.NA,Q4
01/03/2017,PUBLIC HEALTH,Guys & St Thomas NHS Foundation Trust,PAYMENT TO HEALTH AUTHORITIES," 343,117.75 ",Healthcare.Public Health.NA,Q4
01/03/2017,PUBLIC HEALTH,Guys & St Thomas NHS Foundation Trust,PAYMENT TO HEALTH AUTHORITIES," 343,117.75 ",Healthcare.Public Health.NA,Q4
15/03/2017,PUBLIC HEALTH,Guys & St Thomas NHS Foundation Trust,PAYMENT TO HEALTH AUTHORITIES," 343,117.75 ",Healthcare.Public Health.NA,Q4
10/03/2017,PUBLIC HEALTH,Guys & St Thomas NHS Foundation Trust,PAYMENT TO HEALTH AUTHORITIES," 343,117.75 ",Healthcare.Public Health.NA,Q4
21/03/2017,PUBLIC HEALTH,Guys & St Thomas NHS Foundation Trust,PAYMENT TO HEALTH AUTHORITIES," 343,117.75 ",Healthcare.Public Health.NA,Q4
01/03/2017,CAPITAL CC,Mears Ltd,FACILITIES MANAGEMENT," 325,204.72 ","Works - Construction, Repair & Maint.Buildings.Repair & Maintenance",Q4
04/01/2017,"STRATEGIC HOUSING, REGENERATION & COMMUNITIES (HRA)",Roupell Park Resident Management Organisation Ltd,PRIVATE CONTRACTORS PAYMENT - OTHER," 321,274.00 ",Housing Management.Arms Length Management Organisations.NA,Q4
23/02/2017,PUBLIC HEALTH,Guys & St Thomas NHS Foundation Trust,PAYMENT TO HEALTH AUTHORITIES," 320,304.34 ",Healthcare.Public Health.NA,Q4
23/02/2017,PUBLIC HEALTH,Guys & St Thomas NHS Foundation Trust,PAYMENT TO HEALTH AUTHORITIES," 320,304.34 ",Healthcare.Public Health.NA,Q4
21/02/2017,PUBLIC HEALTH,Guys & St Thomas NHS Foundation Trust,PAYMENT TO HEALTH AUTHORITIES," 320,304.34 ",Healthcare.Public Health.NA,Q4
21/02/2017,PUBLIC HEALTH,Guys & St Thomas NHS Foundation Trust,PAYMENT TO HEALTH AUTHORITIES," 320,304.34 ",Healthcare.Public Health.NA,Q4
01/03/2017,PUBLIC HEALTH,Guys & St Thomas NHS Foundation Trust,PAYMENT TO HEALTH AUTHORITIES," 320,304.34 ",Healthcare.Public Health.NA,Q4
15/03/2017,PUBLIC HEALTH,Guys & St Thomas NHS Foundation Trust,PAYMENT TO HEALTH AUTHORITIES," 320,304.34 ",Healthcare.Public Health.NA,Q4
10/03/2017,PUBLIC HEALTH,Guys & St Thomas NHS Foundation Trust,PAYMENT TO HEALTH AUTHORITIES," 320,304.34 ",Healthcare.Public Health.NA,Q4
11/01/2017,CAPITAL CC,Keepmoat Regeneration Ltd,"MAINTENANCE - EQUIPMENT, FURNITURE AND MATERIALS"," 301,989.01 ","Works - Construction, Repair & Maint.Buildings.Construction",Q4
12/01/2017,HUMAN RESOURCES & ORGANISATIONAL DEVELOPMENT,Matrix SCM Ltd,AGENCY STAFF," 296,750.26 ",Human Resources.Temporary & Agency Staff.NA,Q4
03/01/2017,CAPITAL CC,Kier Construction Ltd,"MAINTENANCE - EQUIPMENT, FURNITURE AND MATERIALS"," 288,720.00 ","Works - Construction, Repair & Maint.Buildings.Construction",Q4
22/03/2017,CAPITAL CC,Breyer Group Plc_d,"MAINTENANCE - EQUIPMENT, FURNITURE AND MATERIALS"," 288,556.53 ","Works - Construction, Repair & Maint.Buildings.Construction",Q4
01/03/2017,"NEIGHBOURHOODS, ENVIRONMENT & EMPLOYMENT",Apcoa Parking Services (Uk) Ltd,"PURCHASE - EQUIPMENT, FURNITURE AND MATERIALS"," 288,077.74 ",Street & Traffic Management.Parking.NA,Q4
30/01/2017,"NEIGHBOURHOODS, ENVIRONMENT & EMPLOYMENT",Apcoa Parking Services (Uk) Ltd,"PURCHASE - EQUIPMENT, FURNITURE AND MATERIALS"," 287,141.67 ",Street & Traffic Management.Parking.NA,Q4
22/03/2017,"NEIGHBOURHOODS, ENVIRONMENT & EMPLOYMENT",Apcoa Parking Services (Uk) Ltd,"PURCHASE - EQUIPMENT, FURNITURE AND MATERIALS"," 273,996.36 ",Street & Traffic Management.Parking.NA,Q4
21/03/2017,CAPITAL CC,Keepmoat Regeneration Ltd,"MAINTENANCE - EQUIPMENT, FURNITURE AND MATERIALS"," 270,312.92 ","Works - Construction, Repair & Maint.Buildings.Construction",Q4
06/03/2017,CAPITAL CC,Keepmoat Regeneration Ltd,"MAINTENANCE - EQUIPMENT, FURNITURE AND MATERIALS"," 269,898.07 ","Works - Construction, Repair & Maint.Buildings.Construction",Q4
31/01/2017,CAPITAL CC,Mulalley & Co Ltd,FACILITIES MANAGEMENT," 269,190.23 ","Works - Construction, Repair & Maint.Buildings.Repair & Maintenance",Q4
21/03/2017,CAPITAL CC,Keepmoat Regeneration Ltd,"MAINTENANCE - EQUIPMENT, FURNITURE AND MATERIALS"," 267,433.02 ","Works - Construction, Repair & Maint.Buildings.Construction",Q4
21/03/2017,PUBLIC HEALTH,Guys & St Thomas NHS Foundation Trust,PAYMENT TO HEALTH AUTHORITIES," 263,760.34 ",Healthcare.Public Health.NA,Q4
22/03/2017,"NEIGHBOURHOODS, ENVIRONMENT & EMPLOYMENT",F M Conway Ltd_d,"MAINTENANCE - EQUIPMENT, FURNITURE AND MATERIALS"," 254,000.00 ","Works - Construction, Repair & Maint.Roads.Repair & Maintenance",Q4
22/03/2017,"NEIGHBOURHOODS, ENVIRONMENT & EMPLOYMENT",F M Conway Ltd_d,"MAINTENANCE - EQUIPMENT, FURNITURE AND MATERIALS"," 254,000.00 ","Works - Construction, Repair & Maint.Roads.Repair & Maintenance",Q4
03/03/2017,HOUSING SERVICES (HRA),Mears Ltd,FACILITIES MANAGEMENT," 250,283.30 ","Works - Construction, Repair & Maint.Buildings.Repair & Maintenance",Q4
23/02/2017,"NEIGHBOURHOODS, ENVIRONMENT & EMPLOYMENT",City of London,GRANTS AND CONTRIBUTIONS," 250,000.00 ",Financial Services.Grants.NA,Q4
27/01/2017,HOUSING SERVICES (HRA),Mears Ltd,FACILITIES MANAGEMENT," 249,903.58 ","Works - Construction, Repair & Maint.Buildings.Repair & Maintenance",Q4
22/03/2017,HOUSING SERVICES (HRA),Mears Ltd,FACILITIES MANAGEMENT," 249,903.58 ","Works - Construction, Repair & Maint.Buildings.Repair & Maintenance",Q4
25/01/2017,ADULT SOCIAL CARE,Windmill Care Centre,NURSING HOMES - PRIVATE CONTRACTORS PAYMENT," 249,798.00 ",Social Community Care Supplies & Service.Adult.Residential Care,Q4
22/03/2017,ADULT SOCIAL CARE,Windmill Care Centre,NURSING HOMES - PRIVATE CONTRACTORS PAYMENT," 249,798.00 ",Social Community Care Supplies & Service.Adult.Residential Care,Q4
14/02/2017,CAPITAL CC,Mears Ltd,FACILITIES MANAGEMENT," 247,891.26 ","Works - Construction, Repair & Maint.Buildings.Repair & Maintenance",Q4
19/01/2017,CAPITAL CC,Breyer Group Plc_d,"MAINTENANCE - EQUIPMENT, FURNITURE AND MATERIALS"," 242,841.47 ","Works - Construction, Repair & Maint.Buildings.Construction",Q4
16/02/2017,BUSINESS & CUSTOMER SERVICES,London Councils,MEMBERSHIP AND SUBSCRIPTIONS," 241,390.67 ",Financial Services.Subscriptions.NA,Q4
21/03/2017,"NEIGHBOURHOODS, ENVIRONMENT & EMPLOYMENT",City Suburban Tree Surgeons Ltd,OPEN SPACES WORKS," 239,790.25 ","Works - Construction, Repair & Maint.Open Spaces.Repair & Maintenance",Q4
05/01/2017,ADULT SOCIAL CARE,Age UK Lambeth,PRIVATE CONTRACTORS PAYMENT - OTHER," 237,216.00 ",Social Community Care Supplies & Service.Adult.NA,Q4
18/01/2017,CAPITAL CC,Veolia ES (UK) Ltd,REFUSE COLLECTION," 235,168.02 ",Environmental Services.Waste Management.Waste Collection,Q4
22/02/2017,"NEIGHBOURHOODS, ENVIRONMENT & EMPLOYMENT",CVU_d,"MAINTENANCE - EQUIPMENT, FURNITURE AND MATERIALS"," 231,329.05 ","Works - Construction, Repair & Maint.Roads.Repair & Maintenance",Q4
25/01/2017,EDUCATION & LEARNING,Veolia ES (UK) Ltd,DIRECT TRANSPORT," 227,275.26 ",Public Transport.Passenger Transport.NA,Q4
22/02/2017,EDUCATION & LEARNING,Veolia ES (UK) Ltd,DIRECT TRANSPORT," 227,275.26 ",Public Transport.Passenger Transport.NA,Q4
21/03/2017,EDUCATION & LEARNING,Veolia ES (UK) Ltd,CLIENT TRANSPORT," 227,275.26 ",Public Transport.Taxi Services.Home to School,Q4
22/03/2017,CAPITAL CC,Breyer Group Plc_d,"MAINTENANCE - EQUIPMENT, FURNITURE AND MATERIALS"," 226,089.64 ","Works - Construction, Repair & Maint.Buildings.Construction",Q4
24/02/2017,ADULT SOCIAL CARE,Windmill Care Centre,NURSING HOMES - PRIVATE CONTRACTORS PAYMENT," 225,624.00 ",Social Community Care Supplies & Service.Adult.Residential Care,Q4
09/03/2017,CAPITAL CC,Breyer Group Plc_d,"MAINTENANCE - EQUIPMENT, FURNITURE AND MATERIALS"," 224,144.17 ","Works - Construction, Repair & Maint.Buildings.Construction",Q4
22/03/2017,CAPITAL CC,Blakedown Sport & Play Ltd_d,OPEN SPACES WORKS," 222,273.00 ","Works - Construction, Repair & Maint.Open Spaces.NA",Q4
17/01/2017,"NEIGHBOURHOODS, ENVIRONMENT & EMPLOYMENT",Lambeth Lighting Services,"PURCHASE - EQUIPMENT, FURNITURE AND MATERIALS"," 221,740.56 ",Highway Equipment & Materials.Street Lighting.NA,Q4
06/02/2017,"NEIGHBOURHOODS, ENVIRONMENT & EMPLOYMENT",Lambeth Lighting Services,"PURCHASE - EQUIPMENT, FURNITURE AND MATERIALS"," 221,740.56 ",Highway Equipment & Materials.Street Lighting.NA,Q4
07/03/2017,"NEIGHBOURHOODS, ENVIRONMENT & EMPLOYMENT",Lambeth Lighting Services,"PURCHASE - EQUIPMENT, FURNITURE AND MATERIALS"," 221,740.56 ",Highway Equipment & Materials.Street Lighting.NA,Q4
25/01/2017,ADULT SOCIAL CARE,Limetree Healthcare Ltd,NURSING HOMES - PRIVATE CONTRACTORS PAYMENT," 221,145.14 ",Social Community Care Supplies & Service.Adult.Residential Care,Q4
22/03/2017,ADULT SOCIAL CARE,Limetree Healthcare Ltd,NURSING HOMES - PRIVATE CONTRACTORS PAYMENT," 221,145.14 ",Social Community Care Supplies & Service.Adult.Residential Care,Q4
06/03/2017,HOUSING SERVICES (HRA),Morrison Facilities Services Ltd_d,CLEANING SERVICES," 219,968.50 ",Cleaning & Janitorial.Cleaning Service.External,Q4
26/01/2017,HOUSING SERVICES (HRA),Morrison Facilities Services Ltd_d,CLEANING SERVICES," 219,061.73 ",Cleaning & Janitorial.Cleaning Service.External,Q4
22/03/2017,HOUSING SERVICES (HRA),Morrison Facilities Services Ltd_d,CLEANING SERVICES," 219,061.73 ",Cleaning & Janitorial.Cleaning Service.External,Q4
06/03/2017,PUBLIC HEALTH,Guys & St Thomas NHS Foundation Trust,PAYMENT TO HEALTH AUTHORITIES," 217,170.00 ",Healthcare.Public Health.NA,Q4
17/01/2017,CAPITAL CC,Mears Ltd,FACILITIES MANAGEMENT," 215,919.90 ","Works - Construction, Repair & Maint.Buildings.Repair & Maintenance",Q4
06/03/2017,CAPITAL CC,Keepmoat Regeneration Ltd,"MAINTENANCE - EQUIPMENT, FURNITURE AND MATERIALS"," 212,502.87 ","Works - Construction, Repair & Maint.Buildings.Construction",Q4
03/01/2017,"STRATEGIC HOUSING, REGENERATION & COMMUNITIES (HRA)",Cowley RMO Ltd,PRIVATE CONTRACTORS PAYMENT - OTHER," 211,278.75 ",Housing Management.Arms Length Management Organisations.NA,Q4
21/03/2017,CAPITAL CC,British Gas Trading Ltd,GAS," 210,616.04 ",Utilities.Gas.NA,Q4
05/01/2017,MAJOR CAPITAL PROGRAMMES,Focus Education (Lambeth) Ltd,PROFESSIONAL SERVICES - GENERAL," 210,173.19 ",Education.School Services.NA,Q4
06/02/2017,MAJOR CAPITAL PROGRAMMES,Focus Education (Lambeth) Ltd,PROFESSIONAL SERVICES - GENERAL," 210,173.19 ",Education.School Services.NA,Q4
06/03/2017,MAJOR CAPITAL PROGRAMMES,Focus Education (Lambeth) Ltd,PROFESSIONAL SERVICES - GENERAL," 210,173.19 ",Education.School Services.NA,Q4
23/02/2017,"NEIGHBOURHOODS, ENVIRONMENT & EMPLOYMENT",CVU_d,"MAINTENANCE - EQUIPMENT, FURNITURE AND MATERIALS"," 209,636.92 ","Works - Construction, Repair & Maint.Roads.Construction",Q4
22/03/2017,CAPITAL CC,Breyer Group Plc_d,"MAINTENANCE - EQUIPMENT, FURNITURE AND MATERIALS"," 204,170.51 ","Works - Construction, Repair & Maint.Buildings.Construction",Q4
25/01/2017,ADULT SOCIAL CARE,Norcrest (2000) Home Ltd,RESIDENTIAL PLACEMENTS - PRIVATE CONTRACTORS PAYMENT," 202,807.97 ",Social Community Care Supplies & Service.Adult.Sheltered Accommodation,Q4
22/03/2017,CAPITAL CC,T Brown Group Ltd_d,BUILDING ALTERATIONS AND MATERIALS," 201,366.89 ",Building Construction Materials.Heating & Air Conditioning.NA,Q4
24/02/2017,ADULT SOCIAL CARE,Limetree Healthcare Ltd,NURSING HOMES - PRIVATE CONTRACTORS PAYMENT," 199,744.00 ",Social Community Care Supplies & Service.Adult.Residential Care,Q4
27/01/2017,CAPITAL CC,Keepmoat Regeneration Ltd,"MAINTENANCE - EQUIPMENT, FURNITURE AND MATERIALS"," 198,135.75 ","Works - Construction, Repair & Maint.Buildings.Construction",Q4
01/03/2017,CAPITAL CC,Breyer Group Plc_d,"MAINTENANCE - EQUIPMENT, FURNITURE AND MATERIALS"," 195,960.40 ","Works - Construction, Repair & Maint.Buildings.Construction",Q4
22/02/2017,CAPITAL CC,Blakedown Sport & Play Ltd_d,OPEN SPACES WORKS," 195,217.00 ","Works - Construction, Repair & Maint.Open Spaces.NA",Q4
17/03/2017,SENIOR MANAGEMENT - ADULTS & PUBLIC HEALTH,Urban Concepts Communications,SALARIES," 195,000.00 ",Consultancy.Business.NA,Q4
15/03/2017,CAPITAL CC,Mears Ltd,FACILITIES MANAGEMENT," 189,697.43 ","Works - Construction, Repair & Maint.Buildings.Repair & Maintenance",Q4
27/02/2017,CAPITAL CC,ME Construction Ltd,FACILITIES MANAGEMENT," 187,738.39 ","Works - Construction, Repair & Maint.Buildings.Repair & Maintenance",Q4
27/02/2017,CAPITAL CC,ME Construction Ltd,FACILITIES MANAGEMENT," 187,738.39 ","Works - Construction, Repair & Maint.Buildings.Repair & Maintenance",Q4
16/02/2017,CAPITAL CC,Mears Ltd,FACILITIES MANAGEMENT," 186,131.29 ","Works - Construction, Repair & Maint.Buildings.Repair & Maintenance",Q4
25/01/2017,ADULT SOCIAL CARE,Queens Oak Care Centre,NURSING HOMES - PRIVATE CONTRACTORS PAYMENT," 185,873.79 ",Social Community Care Supplies & Service.Adult.Residential Care,Q4
22/03/2017,ADULT SOCIAL CARE,Queens Oak Care Centre,NURSING HOMES - PRIVATE CONTRACTORS PAYMENT," 185,873.78 ",Social Community Care Supplies & Service.Adult.Residential Care,Q4
24/02/2017,"NEIGHBOURHOODS, ENVIRONMENT & EMPLOYMENT",South Bank Employers Group,CONSULTANCY FEES," 181,088.00 ",Consultancy.Strategic Planning.NA,Q4
24/02/2017,"NEIGHBOURHOODS, ENVIRONMENT & EMPLOYMENT",South Bank Employers Group,CONSULTANCY FEES," 181,088.00 ",Consultancy.Strategic Planning.NA,Q4
30/01/2017,"NEIGHBOURHOODS, ENVIRONMENT & EMPLOYMENT",Apcoa Parking Services (Uk) Ltd,"PURCHASE - EQUIPMENT, FURNITURE AND MATERIALS"," 176,943.98 ",Street & Traffic Management.Parking.NA,Q4
21/03/2017,PUBLIC HEALTH,Guys & St Thomas NHS Foundation Trust,PAYMENT TO HEALTH AUTHORITIES," 175,200.00 ",Healthcare.Public Health.NA,Q4
03/03/2017,CAPITAL CC,Keepmoat Regeneration Ltd,"MAINTENANCE - EQUIPMENT, FURNITURE AND MATERIALS"," 174,792.73 ","Works - Construction, Repair & Maint.Buildings.Construction",Q4
12/01/2017,ADULT SOCIAL CARE,Allied Healthcare (UK) Ltd,DOMICILIARY CARE - THIRD PARTY," 173,118.04 ",Social Community Care Supplies & Service.Adult.Domiciliary Care,Q4
23/01/2017,PUBLIC HEALTH,Chelsea & Westminster Hospital NHS Foundation Trust,PAYMENT TO HEALTH AUTHORITIES," 172,688.53 ",Healthcare.Public Health.NA,Q4
22/03/2017,PUBLIC HEALTH,Chelsea & Westminster Hospital NHS Foundation Trust,PAYMENT TO HEALTH AUTHORITIES," 172,688.53 ",Healthcare.Public Health.NA,Q4
22/03/2017,PUBLIC HEALTH,Chelsea & Westminster Hospital NHS Foundation Trust,PAYMENT TO HEALTH AUTHORITIES," 172,688.53 ",Healthcare.Public Health.NA,Q4
04/01/2017,"STRATEGIC HOUSING, REGENERATION & COMMUNITIES (HRA)",Blenheim Gardens TMO,PRIVATE CONTRACTORS PAYMENT - OTHER," 171,894.00 ",Housing Management.Arms Length Management Organisations.NA,Q4
24/02/2017,ADULT SOCIAL CARE,Queens Oak Care Centre,NURSING HOMES - PRIVATE CONTRACTORS PAYMENT," 167,886.00 ",Social Community Care Supplies & Service.Adult.Residential Care,Q4
07/03/2017,CAPITAL CC,Lambeth Lighting Services,"PURCHASE - EQUIPMENT, FURNITURE AND MATERIALS"," 167,196.15 ",Highway Equipment & Materials.Street Lighting.NA,Q4
25/01/2017,"NEIGHBOURHOODS, ENVIRONMENT & EMPLOYMENT",Tyco Integrated Systems Ltd,SECURITY SERVICES (EXCLUDING PREMISES)," 166,111.00 ",Facilities & Management Services.Security.Closed-Circuit Television,Q4
17/03/2017,CAPITAL CC,Keepmoat Regeneration Ltd,"MAINTENANCE - EQUIPMENT, FURNITURE AND MATERIALS"," 165,827.37 ","Works - Construction, Repair & Maint.Buildings.Construction",Q4
31/01/2017,ADULT SOCIAL CARE,Allied Healthcare (UK) Ltd,DOMICILIARY CARE - THIRD PARTY," 165,716.76 ",Social Community Care Supplies & Service.Adult.Domiciliary Care,Q4
22/03/2017,CAPITAL CC,Keepmoat Regeneration Ltd,"MAINTENANCE - EQUIPMENT, FURNITURE AND MATERIALS"," 165,275.90 ","Works - Construction, Repair & Maint.Buildings.Construction",Q4
22/02/2017,CAPITAL CC,Veolia ES (UK) Ltd,REFUSE COLLECTION," 164,398.44 ",Environmental Services.Waste Management.Waste Collection,Q4
28/02/2017,ADULT SOCIAL CARE,Medequip Assistive Technology Ltd,SPECIALIST EQUIPMENT FOR SERVICE PROVISION," 164,014.34 ",Social Community Care Supplies & Service.Supplies.Equipment,Q4
27/01/2017,CAPITAL CC,Breyer Group Plc_d,"MAINTENANCE - EQUIPMENT, FURNITURE AND MATERIALS"," 162,604.09 ","Works - Construction, Repair & Maint.Buildings.Construction",Q4
22/03/2017,CAPITAL CC,Breyer Group Plc_d,"MAINTENANCE - EQUIPMENT, FURNITURE AND MATERIALS"," 162,081.87 ","Works - Construction, Repair & Maint.Buildings.Construction",Q4
21/03/2017,CAPITAL CC,Keepmoat Regeneration Ltd,"MAINTENANCE - EQUIPMENT, FURNITURE AND MATERIALS"," 162,033.40 ","Works - Construction, Repair & Maint.Buildings.Construction",Q4
30/01/2017,ADULT SOCIAL CARE,Medequip Assistive Technology Ltd,SPECIALIST EQUIPMENT FOR SERVICE PROVISION," 161,023.94 ",Social Community Care Supplies & Service.Supplies.Equipment,Q4
02/02/2017,CAPITAL CC,Mulalley & Co Ltd,"MAINTENANCE - EQUIPMENT, FURNITURE AND MATERIALS"," 160,661.72 ","Works - Construction, Repair & Maint.Buildings.Construction",Q4
22/02/2017,"NEIGHBOURHOODS, ENVIRONMENT & EMPLOYMENT",CVU_d,"MAINTENANCE - EQUIPMENT, FURNITURE AND MATERIALS"," 159,194.27 ","Works - Construction, Repair & Maint.Roads.Repair & Maintenance",Q4
22/03/2017,ADULT SOCIAL CARE,Allied Healthcare (UK) Ltd,DOMICILIARY CARE - THIRD PARTY," 158,654.84 ",Social Community Care Supplies & Service.Adult.Domiciliary Care,Q4
03/03/2017,ADULT SOCIAL CARE,Allied Healthcare (UK) Ltd,DOMICILIARY CARE - THIRD PARTY," 158,004.14 ",Social Community Care Supplies & Service.Adult.Domiciliary Care,Q4
13/03/2017,CAPITAL CC,Kier Construction Ltd,"MAINTENANCE - EQUIPMENT, FURNITURE AND MATERIALS"," 157,358.50 ","Works - Construction, Repair & Maint.Buildings.Construction",Q4
25/01/2017,"NEIGHBOURHOODS, ENVIRONMENT & EMPLOYMENT",Veolia ES (UK) Ltd,REFUSE COLLECTION," 156,444.50 ",Environmental Services.Waste Management.Waste Collection for Recycling,Q4
22/02/2017,"NEIGHBOURHOODS, ENVIRONMENT & EMPLOYMENT",Veolia ES (UK) Ltd,REFUSE COLLECTION," 156,444.50 ",Environmental Services.Waste Management.Waste Collection for Recycling,Q4
21/03/2017,"NEIGHBOURHOODS, ENVIRONMENT & EMPLOYMENT",Veolia ES (UK) Ltd,REFUSE COLLECTION," 156,444.50 ",Environmental Services.Waste Management.Waste Collection for Recycling,Q4
22/03/2017,CENTRAL HRA BUDGETS,Northgate Public Services (UK) Limited,ICT MAINTENANCE AND SUPPORT," 155,190.39 ",Information Communication Technology.Services.Maintenance & Support,Q4
01/02/2017,BUSINESS TRANSFORMATION,Specialist Computer Centers Plc,ICT SOFTWARE," 154,492.56 ",Information Communication Technology.Software.NA,Q4
27/01/2017,CAPITAL CC,Blakedown Sport & Play Ltd_d,OPEN SPACES WORKS," 153,169.00 ","Works - Construction, Repair & Maint.Open Spaces.NA",Q4
10/02/2017,CAPITAL CC,Tibbalds Planning and Urban Design Ltd,CONSULTANCY FEES," 153,027.05 ","Works - Construction, Repair & Maint.Consultancy.NA",Q4
22/03/2017,CAPITAL CC,Keepmoat Regeneration Ltd,"MAINTENANCE - EQUIPMENT, FURNITURE AND MATERIALS"," 152,548.34 ","Works - Construction, Repair & Maint.Buildings.Construction",Q4
10/02/2017,BUSINESS & CUSTOMER SERVICES,Bbh-lsl (Fundco 4) Ltd,PAYMENT TO PRIVATE SECTOR LANDLORDS (PSL)," 151,899.17 ",Housing Management.Letting Agents.NA,Q4
08/03/2017,BUSINESS & CUSTOMER SERVICES,Bbh-lsl (Fundco 4) Ltd,PAYMENT TO PRIVATE SECTOR LANDLORDS (PSL)," 151,899.17 ",Housing Management.Letting Agents.NA,Q4
16/03/2017,CAPITAL CC,Mitie Property Services (UK) Ltd_d,"MAINTENANCE - EQUIPMENT, FURNITURE AND MATERIALS"," 151,340.31 ","Works - Construction, Repair & Maint.Buildings.Construction",Q4
01/02/2017,BUSINESS TRANSFORMATION,Specialist Computer Centers Plc,ICT SOFTWARE," 150,930.75 ",Information Communication Technology.Software.NA,Q4
26/01/2017,CAPITAL CC,Keepmoat Regeneration Ltd,"MAINTENANCE - EQUIPMENT, FURNITURE AND MATERIALS"," 150,164.41 ","Works - Construction, Repair & Maint.Buildings.Construction",Q4
08/03/2017,CAPITAL CC,Elliott Group Limited,"MAINTENANCE - EQUIPMENT, FURNITURE AND MATERIALS"," 150,000.00 ","Works - Construction, Repair & Maint.Buildings.Construction",Q4
10/02/2017,CAPITAL CC,Tibbalds Planning and Urban Design Ltd,CONSULTANCY FEES," 149,145.72 ","Works - Construction, Repair & Maint.Consultancy.NA",Q4
15/03/2017,CAPITAL CC,Lawtech Group Ltd,"MAINTENANCE - EQUIPMENT, FURNITURE AND MATERIALS"," 146,625.00 ","Works - Construction, Repair & Maint.Buildings.NA",Q4
13/01/2017,CAPITAL CC,Mitie Property Services (UK) Ltd_d,"MAINTENANCE - EQUIPMENT, FURNITURE AND MATERIALS"," 145,368.04 ","Works - Construction, Repair & Maint.Buildings.Construction",Q4
22/03/2017,ADULT SOCIAL CARE,Medequip Assistive Technology Ltd,SPECIALIST EQUIPMENT FOR SERVICE PROVISION," 144,751.95 ",Social Community Care Supplies & Service.Supplies.Equipment,Q4
25/01/2017,"NEIGHBOURHOODS, ENVIRONMENT & EMPLOYMENT",Westminster City Council,CONSULTANCY FEES," 142,969.65 ",Consultancy.Business.NA,Q4
05/01/2017,MAJOR CAPITAL PROGRAMMES,Focus Education (Lambeth) Ltd,PROFESSIONAL SERVICES - GENERAL," 142,612.45 ",Education.School Services.NA,Q4
01/03/2017,CAPITAL CC,Tibbalds Planning and Urban Design Ltd,CONSULTANCY FEES," 142,145.72 ","Works - Construction, Repair & Maint.Consultancy.NA",Q4
22/03/2017,CAPITAL CC,Tibbalds Planning and Urban Design Ltd,CONSULTANCY FEES," 142,145.72 ","Works - Construction, Repair & Maint.Consultancy.NA",Q4
20/03/2017,CAPITAL CC,Breyer Group Plc_d,"MAINTENANCE - EQUIPMENT, FURNITURE AND MATERIALS"," 141,286.23 ","Works - Construction, Repair & Maint.Buildings.Construction",Q4
17/02/2017,PUBLIC HEALTH,Mildmay Hospital UK,PAYMENT TO HEALTH AUTHORITIES," 140,328.00 ",Healthcare.Public Health.NA,Q4
04/01/2017,"STRATEGIC HOUSING, REGENERATION & COMMUNITIES (HRA)",Cetra Housing Co-Operative Ltd,PRIVATE CONTRACTORS PAYMENT - OTHER," 137,559.25 ",Housing Management.Housing Association Services.NA,Q4
22/03/2017,ADULT SOCIAL CARE,Aspire Wellbeing,DAYCARE - PRIVATE CONTRACTORS PAYMENT," 137,240.00 ",Social Community Care Supplies & Service.Adult.Day Care,Q4
15/02/2017,BUSINESS TRANSFORMATION,Vodafone Ltd,LAND LINE TELEPHONE COSTS," 136,762.45 ",Information Communication Technology.Telecommunications.NA,Q4
22/02/2017,CAPITAL CC,Mitie Property Services (UK) Ltd_d,"MAINTENANCE - EQUIPMENT, FURNITURE AND MATERIALS"," 136,375.43 ","Works - Construction, Repair & Maint.Buildings.Construction",Q4
23/02/2017,BUSINESS & CUSTOMER SERVICES,Interserve Consulting_d,CONSULTANCY FEES," 133,925.39 ","Works - Construction, Repair & Maint.Consultancy.NA",Q4
22/03/2017,BUSINESS TRANSFORMATION,Virgin Media Business,LAND LINE TELEPHONE COSTS," 133,650.78 ",Information Communication Technology.Telecommunications.NA,Q4
01/02/2017,HOUSING SERVICES (HRA),General Dynamics Information Technology Ltd,ICT MAINTENANCE AND SUPPORT," 132,916.00 ",Information Communication Technology.Services.Application Service Provision,Q4
22/02/2017,HOUSING SERVICES (HRA),General Dynamics Information Technology Ltd,ICT MAINTENANCE AND SUPPORT," 132,916.00 ",Information Communication Technology.Services.Application Service Provision,Q4
20/02/2017,HOUSING SERVICES (HRA),General Dynamics Information Technology Ltd,ICT MAINTENANCE AND SUPPORT," 132,916.00 ",Information Communication Technology.Services.Application Service Provision,Q4
21/03/2017,HOUSING SERVICES (HRA),General Dynamics Information Technology Ltd,ICT MAINTENANCE AND SUPPORT," 132,916.00 ",Information Communication Technology.Services.Application Service Provision,Q4
22/03/2017,CAPITAL CC,Keepmoat Regeneration Ltd,"MAINTENANCE - EQUIPMENT, FURNITURE AND MATERIALS"," 131,826.77 ","Works - Construction, Repair & Maint.Buildings.Construction",Q4
04/01/2017,"STRATEGIC HOUSING, REGENERATION & COMMUNITIES (HRA)",Waltham Estate Resident Management Organisation,PRIVATE CONTRACTORS PAYMENT - OTHER," 127,820.25 ",Housing Management.Arms Length Management Organisations.NA,Q4
09/03/2017,CAPITAL CC,Elliott Group Limited,PREMISES HIRE - FACILITIES," 127,000.00 ",Facilities & Management Services.Portable Building Hire.NA,Q4
22/02/2017,"NEIGHBOURHOODS, ENVIRONMENT & EMPLOYMENT",CVU_d,"MAINTENANCE - EQUIPMENT, FURNITURE AND MATERIALS"," 126,088.35 ","Works - Construction, Repair & Maint.Roads.Repair & Maintenance",Q4
01/03/2017,BUSINESS TRANSFORMATION,Virgin Media Business,LAND LINE TELEPHONE COSTS," 125,781.17 ",Information Communication Technology.Telecommunications.NA,Q4
22/03/2017,CAPITAL CC,Veolia ES (UK) Ltd,REFUSE COLLECTION," 125,187.20 ",Environmental Services.Waste Management.Waste Collection,Q4
13/02/2017,CAPITAL CC,Mears Ltd,FACILITIES MANAGEMENT," 124,285.20 ","Works - Construction, Repair & Maint.Buildings.Repair & Maintenance",Q4
18/01/2017,CAPITAL CC,Keepmoat Regeneration Ltd,"MAINTENANCE - EQUIPMENT, FURNITURE AND MATERIALS"," 124,282.38 ","Works - Construction, Repair & Maint.Buildings.Construction",Q4
16/03/2017,CAPITAL CC,Mitie Property Services (UK) Ltd_d,"MAINTENANCE - EQUIPMENT, FURNITURE AND MATERIALS"," 123,727.87 ","Works - Construction, Repair & Maint.Buildings.Construction",Q4
30/01/2017,CAPITAL CC,Kier Construction Ltd,"MAINTENANCE - EQUIPMENT, FURNITURE AND MATERIALS"," 123,727.75 ","Works - Construction, Repair & Maint.Buildings.Construction",Q4
22/03/2017,CAPITAL CC,Breyer Group Plc_d,"MAINTENANCE - EQUIPMENT, FURNITURE AND MATERIALS"," 123,570.55 ","Works - Construction, Repair & Maint.Buildings.Construction",Q4
14/03/2017,"NEIGHBOURHOODS, ENVIRONMENT & EMPLOYMENT",CVU_d,"MAINTENANCE - EQUIPMENT, FURNITURE AND MATERIALS"," 121,800.12 ","Works - Construction, Repair & Maint.Roads.Construction",Q4
09/01/2017,CHILDREN'S SERVICES,South London & Maudsley (nhs) Trust,PRIVATE CONTRACTORS PAYMENT - OTHER," 121,684.00 ",Social Community Care Supplies & Service.Adult.NA,Q4
15/02/2017,CAPITAL CC,Tibbalds Planning and Urban Design Ltd,CONSULTANCY FEES," 121,634.50 ","Works - Construction, Repair & Maint.Consultancy.NA",Q4
11/01/2017,"NEIGHBOURHOODS, ENVIRONMENT & EMPLOYMENT",NSL Services Group Ltd,CONSULTANCY FEES," 120,248.40 ",Consultancy.Business.NA,Q4
26/01/2017,CAPITAL CC,Lambeth Lighting Services,"PURCHASE - EQUIPMENT, FURNITURE AND MATERIALS"," 120,246.12 ",Highway Equipment & Materials.Street Lighting.NA,Q4
17/03/2017,BUSINESS TRANSFORMATION,British Telecommunications plc,LAND LINE TELEPHONE COSTS," 120,117.70 ",Information Communication Technology.Telecommunications.NA,Q4
12/01/2017,CAPITAL CC,Kier Construction Ltd,"MAINTENANCE - EQUIPMENT, FURNITURE AND MATERIALS"," 118,989.49 ","Works - Construction, Repair & Maint.Buildings.Construction",Q4
20/03/2017,PUBLIC HEALTH,Brook Young People,PAYMENT TO HEALTH AUTHORITIES," 117,462.00 ",Healthcare.Public Health.NA,Q4
22/03/2017,CAPITAL CC,Mitie Property Services (UK) Ltd_d,"MAINTENANCE - EQUIPMENT, FURNITURE AND MATERIALS"," 116,469.23 ","Works - Construction, Repair & Maint.Buildings.Construction",Q4
03/01/2017,"STRATEGIC HOUSING, REGENERATION & COMMUNITIES (HRA)",Cottington Close TMC,PRIVATE CONTRACTORS PAYMENT - OTHER," 116,404.75 ",Housing Management.Arms Length Management Organisations.NA,Q4
01/02/2017,PUBLIC HEALTH,London Community Rehabilitation Company,PRIVATE CONTRACTORS PAYMENT - OTHER," 115,985.00 ",Social Community Care Supplies & Service.Adult.Advice & Counselling Services,Q4
22/02/2017,PUBLIC HEALTH,London Community Rehabilitation Company,PRIVATE CONTRACTORS PAYMENT - OTHER," 115,985.00 ",Social Community Care Supplies & Service.Adult.Advice & Counselling Services,Q4
11/01/2017,CAPITAL CC,Mears Ltd,FACILITIES MANAGEMENT," 115,900.01 ","Works - Construction, Repair & Maint.Buildings.Repair & Maintenance",Q4
22/03/2017,BUSINESS & CUSTOMER SERVICES,Lancedrum Ltd,RENTS PAYABLE," 115,701.30 ",Financial Services.Rents.NA,Q4
22/03/2017,BUSINESS & CUSTOMER SERVICES,Lancedrum Ltd,RENTS PAYABLE," 115,701.30 ",Financial Services.Rents.NA,Q4
22/03/2017,BUSINESS & CUSTOMER SERVICES,Lancedrum Ltd,RENTS PAYABLE," 115,701.30 ",Financial Services.Rents.NA,Q4
22/03/2017,CAPITAL CC,Keepmoat Regeneration Ltd,"MAINTENANCE - EQUIPMENT, FURNITURE AND MATERIALS"," 114,947.75 ","Works - Construction, Repair & Maint.Buildings.Construction",Q4
01/03/2017,CAPITAL CC,Tibbalds Planning and Urban Design Ltd,CONSULTANCY FEES," 114,817.34 ","Works - Construction, Repair & Maint.Consultancy.NA",Q4
01/03/2017,BUSINESS & CUSTOMER SERVICES,Cofely Workplace Ltd,SECURITY SERVICES (EXCLUDING PREMISES)," 114,558.69 ",Facilities & Management Services.Security.NA,Q4
22/03/2017,BUSINESS & CUSTOMER SERVICES,Cofely Workplace Ltd,SECURITY SERVICES (EXCLUDING PREMISES)," 114,558.69 ",Facilities & Management Services.Security.NA,Q4
09/02/2017,BUSINESS & CUSTOMER SERVICES,Cofely Workplace Ltd,SECURITY SERVICES (EXCLUDING PREMISES)," 114,131.92 ",Facilities & Management Services.Security.NA,Q4
22/02/2017,CAPITAL CC,Mitie Property Services (UK) Ltd_d,"MAINTENANCE - EQUIPMENT, FURNITURE AND MATERIALS"," 112,957.45 ","Works - Construction, Repair & Maint.Buildings.Construction",Q4
04/01/2017,ADULT SOCIAL CARE,MiHomecare Ltd,DOMICILIARY CARE - THIRD PARTY," 112,366.99 ",Social Community Care Supplies & Service.Adult.Domiciliary Care,Q4
16/03/2017,CAPITAL CC,Mears Ltd,FACILITIES MANAGEMENT," 112,168.03 ","Works - Construction, Repair & Maint.Buildings.Repair & Maintenance",Q4
16/02/2017,PUBLIC HEALTH,The Metro Centre Ltd,PAYMENT TO HEALTH AUTHORITIES," 111,187.43 ",Healthcare.Public Health.NA,Q4
23/02/2017,CAPITAL CC,T Brown Group Ltd_d,BUILDING ALTERATIONS AND MATERIALS," 111,109.18 ",Building Construction Materials.Heating & Air Conditioning.NA,Q4
13/03/2017,ADULT SOCIAL CARE,MiHomecare Ltd,DOMICILIARY CARE - THIRD PARTY," 111,037.71 ",Social Community Care Supplies & Service.Adult.Domiciliary Care,Q4
22/03/2017,CAPITAL CC,Tibbalds Planning and Urban Design Ltd,CONSULTANCY FEES," 110,638.09 ","Works - Construction, Repair & Maint.Consultancy.NA",Q4
15/02/2017,CAPITAL CC,Tibbalds Planning and Urban Design Ltd,CONSULTANCY FEES," 109,817.34 ","Works - Construction, Repair & Maint.Consultancy.NA",Q4
23/01/2017,CAPITAL CC,T Brown Group Ltd_d,BUILDING ALTERATIONS AND MATERIALS," 109,226.41 ",Building Construction Materials.Heating & Air Conditioning.NA,Q4
22/03/2017,CAPITAL CC,Keepmoat Regeneration Ltd,"MAINTENANCE - EQUIPMENT, FURNITURE AND MATERIALS"," 109,129.08 ","Works - Construction, Repair & Maint.Buildings.Construction",Q4
24/01/2017,ADULT SOCIAL CARE,CMG Homes Ltd,RESIDENTIAL PLACEMENTS - PRIVATE CONTRACTORS PAYMENT," 108,793.78 ",Social Community Care Supplies & Service.Adult.Residential Care,Q4
04/01/2017,ADULT SOCIAL CARE,MiHomecare Ltd,DOMICILIARY CARE - THIRD PARTY," 108,492.09 ",Social Community Care Supplies & Service.Adult.Domiciliary Care,Q4
16/01/2017,ADULT SOCIAL CARE,MiHomecare Ltd,DOMICILIARY CARE - THIRD PARTY," 108,464.15 ",Social Community Care Supplies & Service.Adult.Domiciliary Care,Q4
03/02/2017,ADULT SOCIAL CARE,MiHomecare Ltd,DOMICILIARY CARE - THIRD PARTY," 108,464.15 ",Social Community Care Supplies & Service.Adult.Domiciliary Care,Q4
13/03/2017,ADULT SOCIAL CARE,MiHomecare Ltd,DOMICILIARY CARE - THIRD PARTY," 108,057.18 ",Social Community Care Supplies & Service.Adult.Domiciliary Care,Q4
22/03/2017,CAPITAL CC,Mulalley & Co Ltd,"MAINTENANCE - EQUIPMENT, FURNITURE AND MATERIALS"," 107,834.42 ","Works - Construction, Repair & Maint.Buildings.Construction",Q4
09/02/2017,CAPITAL CC,Tibbalds Planning and Urban Design Ltd,CONSULTANCY FEES," 107,701.22 ","Works - Construction, Repair & Maint.Consultancy.NA",Q4
23/01/2017,CAPITAL CC,Breyer Group Plc_d,"MAINTENANCE - EQUIPMENT, FURNITURE AND MATERIALS"," 107,467.67 ","Works - Construction, Repair & Maint.Buildings.Construction",Q4
13/03/2017,ADULT SOCIAL CARE,MiHomecare Ltd,DOMICILIARY CARE - THIRD PARTY," 107,055.69 ",Social Community Care Supplies & Service.Adult.Domiciliary Care,Q4
13/03/2017,ADULT SOCIAL CARE,MiHomecare Ltd,DOMICILIARY CARE - THIRD PARTY," 107,011.80 ",Social Community Care Supplies & Service.Adult.Domiciliary Care,Q4
17/01/2017,CAPITAL CC,Mears Ltd,FACILITIES MANAGEMENT," 106,205.01 ","Works - Construction, Repair & Maint.Buildings.Repair & Maintenance",Q4
22/03/2017,"NEIGHBOURHOODS, ENVIRONMENT & EMPLOYMENT",Veolia ES (UK) Ltd,WASTE DISPOSAL COSTS," 106,000.00 ",Environmental Services.Waste Management.NA,Q4
09/03/2017,CAPITAL CC,Breyer Group Plc_d,"MAINTENANCE - EQUIPMENT, FURNITURE AND MATERIALS"," 104,810.79 ","Works - Construction, Repair & Maint.Buildings.Construction",Q4
18/01/2017,HOUSING SERVICES (HRA),Keepmoat Regeneration Ltd,FACILITIES MANAGEMENT," 104,133.41 ","Works - Construction, Repair & Maint.Buildings.Repair & Maintenance",Q4
18/01/2017,HOUSING SERVICES (HRA),Keepmoat Regeneration Ltd,FACILITIES MANAGEMENT," 104,133.41 ","Works - Construction, Repair & Maint.Buildings.Repair & Maintenance",Q4
18/01/2017,HOUSING SERVICES (HRA),Keepmoat Regeneration Ltd,FACILITIES MANAGEMENT," 104,133.41 ","Works - Construction, Repair & Maint.Buildings.Repair & Maintenance",Q4
09/03/2017,HOUSING SERVICES (HRA),Keepmoat Regeneration Ltd,FACILITIES MANAGEMENT," 104,133.41 ","Works - Construction, Repair & Maint.Buildings.Repair & Maintenance",Q4
20/02/2017,CAPITAL CC,Mulalley & Co Ltd,"MAINTENANCE - EQUIPMENT, FURNITURE AND MATERIALS"," 102,544.93 ","Works - Construction, Repair & Maint.Buildings.Construction",Q4
13/03/2017,ADULT SOCIAL CARE,MiHomecare Ltd,DOMICILIARY CARE - THIRD PARTY," 102,011.85 ",Social Community Care Supplies & Service.Adult.Domiciliary Care,Q4
22/03/2017,CORPORATE ITEMS,London Borough of Southwark,PAYMENT TO HEALTH AUTHORITIES," 100,949.17 ",Healthcare.Public Health.NA,Q4
22/03/2017,CHILDREN'S SERVICES,Swanstaff Recruitment Ltd,STAFF RECRUITMENT COSTS," 100,000.00 ",Human Resources.Recruitment & Assessment.NA,Q4
08/03/2017,"NEIGHBOURHOODS, ENVIRONMENT & EMPLOYMENT",TfL Surface Transport,VEHICLE REPAIRS AND MAINTENANCE," 99,352.81 ",Public Transport.Maintenance.NA,Q4
31/01/2017,CAPITAL CC,Mulalley & Co Ltd,"MAINTENANCE - EQUIPMENT, FURNITURE AND MATERIALS"," 98,918.48 ","Works - Construction, Repair & Maint.Buildings.Construction",Q4
28/02/2017,BUSINESS TRANSFORMATION,Swiss Post Solutions Ltd,PRINTING," 98,649.67 ",Facilities & Management Services.Printing.NA,Q4
20/03/2017,CAPITAL CC,Mitie Property Services (UK) Ltd_d,"MAINTENANCE - EQUIPMENT, FURNITURE AND MATERIALS"," 98,400.00 ","Works - Construction, Repair & Maint.Buildings.Construction",Q4
03/01/2017,CAPITAL CC,Kier Construction Ltd,"MAINTENANCE - EQUIPMENT, FURNITURE AND MATERIALS"," 98,303.00 ","Works - Construction, Repair & Maint.Buildings.Construction",Q4
22/03/2017,ADULT SOCIAL CARE,The Avenues Trust,SUPPORTED OTHER ACCOMMODATION - PRIVATE CONTRACTORS PAYMENT," 97,319.00 ",Social Community Care Supplies & Service.Adult.Sheltered Accommodation,Q4
25/01/2017,ADULT SOCIAL CARE,Frontier Support Services Ltd,SUPPORTED OTHER ACCOMMODATION - PRIVATE CONTRACTORS PAYMENT," 96,503.78 ",Social Community Care Supplies & Service.Adult.Domiciliary Care,Q4
09/02/2017,CAPITAL CC,Tibbalds Planning and Urban Design Ltd,CONSULTANCY FEES," 95,867.74 ","Works - Construction, Repair & Maint.Consultancy.NA",Q4
16/01/2017,CHILDREN'S SERVICES,Morning Lane Associates,CONSULTANCY FEES," 95,600.00 ",Consultancy.Business.NA,Q4
10/03/2017,CAPITAL CC,T Brown Group Ltd_d,BUILDING ALTERATIONS AND MATERIALS," 94,808.61 ",Building Construction Materials.Heating & Air Conditioning.NA,Q4
21/03/2017,CAPITAL CC,T Brown Group Ltd_d,BUILDING ALTERATIONS AND MATERIALS," 94,645.27 ",Building Construction Materials.Heating & Air Conditioning.NA,Q4
22/03/2017,CAPITAL CC,T Brown Group Ltd_d,BUILDING ALTERATIONS AND MATERIALS," 92,108.32 ",Building Construction Materials.Heating & Air Conditioning.NA,Q4
22/03/2017,CAPITAL CC,John Rowan & Partners LLP,LEGAL FEES," 92,073.45 ",Legal Services.General Support.NA,Q4
22/03/2017,CHILDREN'S SERVICES,Reflexion Care Group Ltd,RESIDENTIAL PLACEMENTS - PRIVATE CONTRACTORS PAYMENT," 91,933.57 ",Social Community Care Supplies & Service.Children.Residential Care,Q4
26/01/2017,CAPITAL CC,T Brown Group Ltd_d,BUILDING ALTERATIONS AND MATERIALS," 90,139.56 ",Building Construction Materials.Heating & Air Conditioning.NA,Q4
06/02/2017,HOUSING SERVICES (HRA),Oco Ltd_d,RESPONSIVE REPAIRS - MECHANICAL AND ELECTRICAL," 89,595.35 ",Building Construction Materials.Heating & Air Conditioning.NA,Q4
13/03/2017,HOUSING SERVICES (HRA),Oco Ltd_d,RESPONSIVE REPAIRS - MECHANICAL AND ELECTRICAL," 89,595.35 ",Building Construction Materials.Heating & Air Conditioning.NA,Q4
23/03/2017,HOUSING SERVICES (HRA),Oco Ltd_d,RESPONSIVE REPAIRS - MECHANICAL AND ELECTRICAL," 89,595.35 ",Building Construction Materials.Heating & Air Conditioning.NA,Q4
25/01/2017,CAPITAL CC,Breyer Group Plc_d,"MAINTENANCE - EQUIPMENT, FURNITURE AND MATERIALS"," 89,474.19 ","Works - Construction, Repair & Maint.Buildings.Construction",Q4
27/02/2017,CAPITAL CC,Breyer Group Plc_d,"MAINTENANCE - EQUIPMENT, FURNITURE AND MATERIALS"," 88,923.56 ","Works - Construction, Repair & Maint.Buildings.Construction",Q4
17/02/2017,FINANCE,EDF Energy Plc,ELECTRICITY," 88,099.96 ",Utilities.Electricity.NA,Q4
22/03/2017,CAPITAL CC,Breyer Group Plc_d,"MAINTENANCE - EQUIPMENT, FURNITURE AND MATERIALS"," 87,771.23 ","Works - Construction, Repair & Maint.Buildings.Construction",Q4
03/03/2017,PUBLIC HEALTH,Women In Prison,ASYLUM SEEKERS - PRIVATE CONTRACTORS PAYMENT," 86,878.00 ",Social Community Care Supplies & Service.Adult.Asylum Seekers Services,Q4
22/03/2017,CAPITAL CC,Keepmoat Regeneration Ltd,"MAINTENANCE - EQUIPMENT, FURNITURE AND MATERIALS"," 86,631.21 ","Works - Construction, Repair & Maint.Buildings.Construction",Q4
22/02/2017,CAPITAL CC,F M Conway Ltd_d,"MAINTENANCE - EQUIPMENT, FURNITURE AND MATERIALS"," 86,614.29 ","Works - Construction, Repair & Maint.Roads.Repair & Maintenance",Q4
10/03/2017,CAPITAL CC,T Brown Group Ltd_d,BUILDING ALTERATIONS AND MATERIALS," 86,356.30 ",Building Construction Materials.Heating & Air Conditioning.NA,Q4
17/02/2017,FINANCE,EDF Energy Plc,ELECTRICITY," 85,786.42 ",Utilities.Electricity.NA,Q4
22/02/2017,"NEIGHBOURHOODS, ENVIRONMENT & EMPLOYMENT",CVU_d,"MAINTENANCE - EQUIPMENT, FURNITURE AND MATERIALS"," 84,214.28 ","Works - Construction, Repair & Maint.Roads.Repair & Maintenance",Q4
22/03/2017,CAPITAL CC,Mitie Property Services (UK) Ltd_d,"MAINTENANCE - EQUIPMENT, FURNITURE AND MATERIALS"," 83,998.88 ","Works - Construction, Repair & Maint.Buildings.Construction",Q4
31/01/2017,CORPORATE ITEMS,London Councils,MEMBERSHIP AND SUBSCRIPTIONS," 83,853.00 ",Financial Services.Subscriptions.NA,Q4
10/02/2017,CAPITAL CC,Kier Construction Ltd,"MAINTENANCE - EQUIPMENT, FURNITURE AND MATERIALS"," 83,451.60 ","Works - Construction, Repair & Maint.Buildings.Construction",Q4
25/01/2017,ADULT SOCIAL CARE,Salisbury Support 4 Autism Ltd,SUPPORTED OTHER ACCOMMODATION - PRIVATE CONTRACTORS PAYMENT," 83,350.30 ",Social Community Care Supplies & Service.Adult.Sheltered Accommodation,Q4
17/02/2017,FINANCE,EDF Energy Plc,ELECTRICITY," 81,945.25 ",Utilities.Electricity.NA,Q4
25/01/2017,ADULT SOCIAL CARE,Queens Oak Care Centre,RESIDENTIAL PLACEMENTS - PRIVATE CONTRACTORS PAYMENT," 81,910.86 ",Social Community Care Supplies & Service.Adult.Residential Care,Q4
22/03/2017,ADULT SOCIAL CARE,Queens Oak Care Centre,RESIDENTIAL PLACEMENTS - PRIVATE CONTRACTORS PAYMENT," 81,910.86 ",Social Community Care Supplies & Service.Adult.Residential Care,Q4
22/03/2017,BUSINESS TRANSFORMATION,Northgate Public Services (UK) Limited,ICT MAINTENANCE AND SUPPORT," 81,657.66 ",Information Communication Technology.Services.Maintenance & Support,Q4
03/02/2017,HOUSING SERVICES (HRA),T Brown Group Ltd_d,RESPONSIVE REPAIRS - MECHANICAL AND ELECTRICAL," 81,463.56 ",Building Construction Materials.Heating & Air Conditioning.NA,Q4
23/03/2017,HOUSING SERVICES (HRA),T Brown Group Ltd_d,RESPONSIVE REPAIRS - MECHANICAL AND ELECTRICAL," 81,463.56 ",Building Construction Materials.Heating & Air Conditioning.NA,Q4
27/01/2017,CAPITAL CC,Keepmoat Regeneration Ltd,"MAINTENANCE - EQUIPMENT, FURNITURE AND MATERIALS"," 79,737.49 ","Works - Construction, Repair & Maint.Buildings.Construction",Q4
15/02/2017,ADULT SOCIAL CARE,NHS Lambeth Clinical Commissioning Group,PAYMENT TO HEALTH AUTHORITIES," 78,000.00 ",Healthcare.Public Health.NA,Q4
15/02/2017,ADULT SOCIAL CARE,NHS Lambeth Clinical Commissioning Group,PAYMENT TO HEALTH AUTHORITIES," 78,000.00 ",Healthcare.Public Health.NA,Q4
03/01/2017,"STRATEGIC HOUSING, REGENERATION & COMMUNITIES (HRA)",Holland Rise & Whitebeam Close TMO,PRIVATE CONTRACTORS PAYMENT - OTHER," 77,467.50 ",Housing Management.Arms Length Management Organisations.NA,Q4
17/02/2017,CAPITAL CC,Mitie Property Services (UK) Ltd_d,"MAINTENANCE - EQUIPMENT, FURNITURE AND MATERIALS"," 77,212.61 ","Works - Construction, Repair & Maint.Buildings.Construction",Q4
06/02/2017,ADULT SOCIAL CARE,TOPAZ Social Work CIC,PRIVATE CONTRACTORS PAYMENT - OTHER," 77,049.70 ",Social Community Care Supplies & Service.Adult.NA,Q4
06/02/2017,ADULT SOCIAL CARE,TOPAZ Social Work CIC,PRIVATE CONTRACTORS PAYMENT - OTHER," 77,049.70 ",Social Community Care Supplies & Service.Adult.NA,Q4
18/01/2017,CAPITAL CC,Mears Ltd,FACILITIES MANAGEMENT," 76,831.24 ","Works - Construction, Repair & Maint.Buildings.Repair & Maintenance",Q4
07/03/2017,CAPITAL CC,T Brown Group Ltd_d,BUILDING ALTERATIONS AND MATERIALS," 75,169.16 ",Building Construction Materials.Heating & Air Conditioning.NA,Q4
11/01/2017,CAPITAL CC,Mears Ltd,FACILITIES MANAGEMENT," 74,763.75 ","Works - Construction, Repair & Maint.Buildings.Repair & Maintenance",Q4
26/01/2017,BUSINESS TRANSFORMATION,Canon (UK) Ltd,PHOTOCOPYING," 74,201.65 ",Facilities & Management Services.Reprographics.NA,Q4
24/02/2017,ADULT SOCIAL CARE,Queens Oak Care Centre,RESIDENTIAL PLACEMENTS - PRIVATE CONTRACTORS PAYMENT," 73,984.00 ",Social Community Care Supplies & Service.Adult.Residential Care,Q4
25/01/2017,"NEIGHBOURHOODS, ENVIRONMENT & EMPLOYMENT",Westminster City Council,CONSULTANCY FEES," 73,815.50 ",Consultancy.Business.NA,Q4
03/01/2017,PUBLIC HEALTH,"Change, Grow, Live (CGL)",PAYMENT TO HEALTH AUTHORITIES," 73,750.00 ",Healthcare.Public Health.NA,Q4
08/02/2017,PUBLIC HEALTH,"Change, Grow, Live (CGL)",PAYMENT TO HEALTH AUTHORITIES," 73,750.00 ",Healthcare.Public Health.NA,Q4
22/02/2017,"NEIGHBOURHOODS, ENVIRONMENT & EMPLOYMENT",CVU_d,"MAINTENANCE - EQUIPMENT, FURNITURE AND MATERIALS"," 73,532.75 ","Works - Construction, Repair & Maint.Roads.Repair & Maintenance",Q4
22/03/2017,CAPITAL CC,Veolia ES (UK) Ltd,REFUSE COLLECTION," 73,479.98 ",Environmental Services.Waste Management.Waste Collection,Q4
25/01/2017,ADULT SOCIAL CARE,Insight,RESIDENTIAL PLACEMENTS - PRIVATE CONTRACTORS PAYMENT," 73,141.76 ",Social Community Care Supplies & Service.Adult.Residential Care,Q4
22/02/2017,PUBLIC HEALTH,Carat,PAYMENT TO HEALTH AUTHORITIES," 72,794.17 ",Healthcare.Public Health.NA,Q4
30/01/2017,BUSINESS TRANSFORMATION,Swiss Post Solutions Ltd,PRINTING," 72,499.83 ",Facilities & Management Services.Printing.NA,Q4
11/01/2017,"NEIGHBOURHOODS, ENVIRONMENT & EMPLOYMENT",NSL Services Group Ltd,CONSULTANCY FEES," 72,057.41 ",Consultancy.Business.NA,Q4
10/03/2017,"NEIGHBOURHOODS, ENVIRONMENT & EMPLOYMENT",Veolia ES (UK) Ltd,REFUSE COLLECTION," 71,547.75 ",Environmental Services.Waste Management.Waste Collection,Q4
10/03/2017,"NEIGHBOURHOODS, ENVIRONMENT & EMPLOYMENT",Veolia ES (UK) Ltd,REFUSE COLLECTION," 71,547.75 ",Environmental Services.Waste Management.Waste Collection,Q4
21/03/2017,CAPITAL CC,Keepmoat Regeneration Ltd,"MAINTENANCE - EQUIPMENT, FURNITURE AND MATERIALS"," 71,467.07 ","Works - Construction, Repair & Maint.Buildings.Construction",Q4
21/03/2017,"NEIGHBOURHOODS, ENVIRONMENT & EMPLOYMENT",Veolia ES (UK) Ltd,REFUSE COLLECTION," 71,429.17 ",Environmental Services.Waste Management.Waste Collection,Q4
01/03/2017,BUSINESS & CUSTOMER SERVICES,Cofely Workplace Ltd,CLEANING SERVICES," 71,157.51 ",Cleaning & Janitorial.Cleaning Service.Internal,Q4
22/03/2017,BUSINESS & CUSTOMER SERVICES,Cofely Workplace Ltd,CLEANING SERVICES," 71,157.51 ",Cleaning & Janitorial.Cleaning Service.Internal,Q4
09/02/2017,BUSINESS & CUSTOMER SERVICES,Cofely Workplace Ltd,CLEANING SERVICES," 71,048.97 ",Cleaning & Janitorial.Cleaning Service.Internal,Q4
31/01/2017,PUBLIC HEALTH,South London & Maudsley (nhs) Trust,PAYMENT TO HEALTH AUTHORITIES," 71,000.00 ",Healthcare.Public Health.NA,Q4
17/03/2017,CAPITAL CC,Mitie Property Services (UK) Ltd_d,"MAINTENANCE - EQUIPMENT, FURNITURE AND MATERIALS"," 70,693.93 ","Works - Construction, Repair & Maint.Buildings.Construction",Q4
09/03/2017,"STRATEGIC HOUSING, REGENERATION & COMMUNITIES (HRA)",Morrison Facilities Services Ltd_d,RESPONSIVE REPAIRS - MECHANICAL AND ELECTRICAL," 69,589.12 ",Cleaning & Janitorial.Cleaning Service.External,Q4
21/03/2017,CAPITAL CC,Hunter & Partners,"MAINTENANCE - EQUIPMENT, FURNITURE AND MATERIALS"," 69,533.86 ","Works - Construction, Repair & Maint.Architect.NA",Q4
22/02/2017,CAPITAL CC,T Brown Group Ltd_d,BUILDING ALTERATIONS AND MATERIALS," 69,294.09 ",Building Construction Materials.Heating & Air Conditioning.NA,Q4
02/02/2017,CAPITAL CC,Mears Ltd,FACILITIES MANAGEMENT," 69,164.84 ","Works - Construction, Repair & Maint.Buildings.Repair & Maintenance",Q4
13/03/2017,"PLANNING, TRANSPORT & DEVELOPMENT",Cycle Confident Ltd,ARTS AND LEISURE COSTS," 69,000.00 ",Arts & Leisure Services.Sport & Fitness.NA,Q4
28/02/2017,CAPITAL CC,Keepmoat Regeneration Ltd,"MAINTENANCE - EQUIPMENT, FURNITURE AND MATERIALS"," 68,574.43 ","Works - Construction, Repair & Maint.Buildings.Construction",Q4
08/03/2017,"STRATEGIC HOUSING, REGENERATION & COMMUNITIES (HRA)",Morrison Facilities Services Ltd_d,RESPONSIVE REPAIRS - MECHANICAL AND ELECTRICAL," 68,534.43 ",Cleaning & Janitorial.Cleaning Service.External,Q4
14/03/2017,CAPITAL CC,Mitie Property Services (UK) Ltd_d,"MAINTENANCE - EQUIPMENT, FURNITURE AND MATERIALS"," 67,926.25 ","Works - Construction, Repair & Maint.Buildings.Construction",Q4
25/01/2017,ADULT SOCIAL CARE,Limetree Healthcare Ltd,RESIDENTIAL PLACEMENTS - PRIVATE CONTRACTORS PAYMENT," 67,456.00 ",Social Community Care Supplies & Service.Adult.Residential Care,Q4
22/03/2017,ADULT SOCIAL CARE,Limetree Healthcare Ltd,RESIDENTIAL PLACEMENTS - PRIVATE CONTRACTORS PAYMENT," 67,456.00 ",Social Community Care Supplies & Service.Adult.Residential Care,Q4
06/01/2017,CAPITAL CC,T Brown Group Ltd_d,BUILDING ALTERATIONS AND MATERIALS," 67,327.32 ",Building Construction Materials.Heating & Air Conditioning.NA,Q4
22/03/2017,PUBLIC HEALTH,Central & North West London NHS Foundation Trust,PAYMENT TO HEALTH AUTHORITIES," 67,209.38 ",Healthcare.Public Health.NA,Q4
22/02/2017,HOUSING SERVICES (HRA),Mitie Property Services (UK) Ltd_d,RESPONSIVE REPAIRS - MECHANICAL AND ELECTRICAL," 66,015.74 ","Works - Construction, Repair & Maint.Buildings.Construction",Q4
08/03/2017,HOUSING SERVICES (HRA),Mitie Property Services (UK) Ltd_d,RESPONSIVE REPAIRS - MECHANICAL AND ELECTRICAL," 66,015.74 ","Works - Construction, Repair & Maint.Buildings.Construction",Q4
16/03/2017,HOUSING SERVICES (HRA),Mitie Property Services (UK) Ltd_d,RESPONSIVE REPAIRS - MECHANICAL AND ELECTRICAL," 66,015.74 ","Works - Construction, Repair & Maint.Buildings.Construction",Q4
17/02/2017,CAPITAL CC,Oco Ltd_d,BUILDING ALTERATIONS AND MATERIALS," 65,830.77 ",Building Construction Materials.Heating & Air Conditioning.NA,Q4
22/03/2017,CAPITAL CC,Tibbalds Planning and Urban Design Ltd,CONSULTANCY FEES," 65,165.24 ","Works - Construction, Repair & Maint.Consultancy.NA",Q4
21/02/2017,FINANCE,KPMG,AUDIT FEES," 65,000.00 ",Financial Services.Audit.NA,Q4
22/03/2017,BUSINESS & CUSTOMER SERVICES,Cofely Workplace Ltd,FACILITIES MANAGEMENT," 64,738.52 ","Works - Construction, Repair & Maint.Buildings.Repair & Maintenance",Q4
01/03/2017,PUBLIC HEALTH,Thames Reach,PAYMENT TO HEALTH AUTHORITIES," 64,633.00 ",Healthcare.Public Health.NA,Q4
01/03/2017,BUSINESS & CUSTOMER SERVICES,Cofely Workplace Ltd,FACILITIES MANAGEMENT," 64,466.15 ","Works - Construction, Repair & Maint.Buildings.Repair & Maintenance",Q4
03/01/2017,"STRATEGIC HOUSING, REGENERATION & COMMUNITIES (HRA)",Wellington Mills Housing TMC,PRIVATE CONTRACTORS PAYMENT - OTHER," 64,339.50 ",Housing Management.Arms Length Management Organisations.NA,Q4
22/03/2017,BUSINESS TRANSFORMATION,Swiss Post Solutions Ltd,PRINTING," 63,694.67 ",Facilities & Management Services.Printing.NA,Q4
22/02/2017,"NEIGHBOURHOODS, ENVIRONMENT & EMPLOYMENT",CVU_d,"MAINTENANCE - EQUIPMENT, FURNITURE AND MATERIALS"," 63,511.18 ","Works - Construction, Repair & Maint.Roads.Repair & Maintenance",Q4
27/01/2017,CAPITAL CC,F M Conway Ltd_d,"MAINTENANCE - EQUIPMENT, FURNITURE AND MATERIALS"," 62,908.76 ","Works - Construction, Repair & Maint.Roads.Construction",Q4
27/02/2017,CAPITAL CC,F M Conway Ltd_d,"MAINTENANCE - EQUIPMENT, FURNITURE AND MATERIALS"," 61,862.82 ","Works - Construction, Repair & Maint.Roads.Repair & Maintenance",Q4
14/02/2017,CHILDREN'S SERVICES,Deighton Pierce Glynn Ltd,LEGAL FEES," 61,750.00 ",Legal Services.Legal Opinion.NA,Q4
22/03/2017,"STRATEGIC HOUSING, REGENERATION & COMMUNITIES (HRA)",Morrison Facilities Services Ltd_d,RESPONSIVE REPAIRS - MECHANICAL AND ELECTRICAL," 61,599.39 ",Cleaning & Janitorial.Cleaning Service.External,Q4
14/03/2017,"STRATEGIC HOUSING, REGENERATION & COMMUNITIES (HRA)",Cowley RMO Ltd,PRIVATE CONTRACTORS PAYMENT - OTHER," 61,023.94 ",Housing Management.Arms Length Management Organisations.NA,Q4
24/02/2017,ADULT SOCIAL CARE,Limetree Healthcare Ltd,RESIDENTIAL PLACEMENTS - PRIVATE CONTRACTORS PAYMENT," 60,928.00 ",Social Community Care Supplies & Service.Adult.Residential Care,Q4
07/03/2017,CHILDREN'S SERVICES,Holmdene Housing Ltd,RENTS PAYABLE," 60,814.28 ",Social Community Care Supplies & Service.Adult.Sheltered Accommodation,Q4
30/01/2017,"NEIGHBOURHOODS, ENVIRONMENT & EMPLOYMENT",F M Conway Ltd_d,"MAINTENANCE - EQUIPMENT, FURNITURE AND MATERIALS"," 60,633.98 ","Works - Construction, Repair & Maint.Roads.Repair & Maintenance",Q4
20/02/2017,CAPITAL CC,Father Nature,GROUNDS MAINTENANCE," 60,600.00 ",Horticultural.Seeds & Plants.NA,Q4
09/02/2017,FINANCE,Turnberry Real Estate Ltd,CONSULTANCY FEES," 60,000.00 ","Works - Construction, Repair & Maint.Consultancy.NA",Q4
17/02/2017,CAPITAL CC,Mitie Property Services (UK) Ltd_d,"MAINTENANCE - EQUIPMENT, FURNITURE AND MATERIALS"," 59,799.88 ","Works - Construction, Repair & Maint.Buildings.Construction",Q4
14/03/2017,CAPITAL CC,Mitie Property Services (UK) Ltd_d,"MAINTENANCE - EQUIPMENT, FURNITURE AND MATERIALS"," 59,241.27 ","Works - Construction, Repair & Maint.Buildings.Construction",Q4
27/01/2017,ADULT SOCIAL CARE,NHS Lambeth Clinical Commissioning Group,PAYMENT TO HEALTH AUTHORITIES," 58,671.90 ",Healthcare.Public Health.NA,Q4
07/03/2017,CAPITAL CC,Breyer Group Plc_d,"MAINTENANCE - EQUIPMENT, FURNITURE AND MATERIALS"," 58,450.25 ","Works - Construction, Repair & Maint.Buildings.Construction",Q4
27/02/2017,PUBLIC HEALTH,SH24 C.I.C,PAYMENT TO HEALTH AUTHORITIES," 58,400.59 ",Healthcare.Public Health.NA,Q4
27/02/2017,PUBLIC HEALTH,SH24 C.I.C,PAYMENT TO HEALTH AUTHORITIES," 58,400.59 ",Healthcare.Public Health.NA,Q4
28/02/2017,PUBLIC HEALTH,SH24 C.I.C,PAYMENT TO HEALTH AUTHORITIES," 58,400.59 ",Healthcare.Public Health.NA,Q4
10/03/2017,PUBLIC HEALTH,SH24 C.I.C,PAYMENT TO HEALTH AUTHORITIES," 58,400.59 ",Healthcare.Public Health.NA,Q4
10/03/2017,PUBLIC HEALTH,SH24 C.I.C,PAYMENT TO HEALTH AUTHORITIES," 58,400.59 ",Healthcare.Public Health.NA,Q4
10/03/2017,PUBLIC HEALTH,SH24 C.I.C,PAYMENT TO HEALTH AUTHORITIES," 58,400.59 ",Healthcare.Public Health.NA,Q4
22/03/2017,CHILDREN'S SERVICES,Catch22,PRIVATE CONTRACTORS PAYMENT - OTHER," 57,710.35 ",Social Community Care Supplies & Service.Children.Residential Care,Q4
09/02/2017,BUSINESS & CUSTOMER SERVICES,Cofely Workplace Ltd,FACILITIES MANAGEMENT," 57,520.04 ","Works - Construction, Repair & Maint.Buildings.Repair & Maintenance",Q4
03/01/2017,CAPITAL CC,Kier Construction Ltd,"MAINTENANCE - EQUIPMENT, FURNITURE AND MATERIALS"," 57,483.00 ","Works - Construction, Repair & Maint.Buildings.Construction",Q4
01/03/2017,BUSINESS & CUSTOMER SERVICES,Cofely Workplace Ltd,FACILITIES MANAGEMENT," 57,109.05 ","Works - Construction, Repair & Maint.Buildings.Repair & Maintenance",Q4
22/03/2017,BUSINESS & CUSTOMER SERVICES,Cofely Workplace Ltd,FACILITIES MANAGEMENT," 57,109.05 ","Works - Construction, Repair & Maint.Buildings.Repair & Maintenance",Q4
16/02/2017,PUBLIC HEALTH,The Metro Centre Ltd,PAYMENT TO HEALTH AUTHORITIES," 55,943.50 ",Healthcare.Public Health.NA,Q4
17/03/2017,CAPITAL CC,City Suburban Tree Surgeons Ltd,OPEN SPACES WORKS," 55,940.00 ","Works - Construction, Repair & Maint.Open Spaces.Repair & Maintenance",Q4
30/01/2017,"NEIGHBOURHOODS, ENVIRONMENT & EMPLOYMENT",F M Conway Ltd_d,"MAINTENANCE - EQUIPMENT, FURNITURE AND MATERIALS"," 55,556.69 ","Works - Construction, Repair & Maint.Roads.Repair & Maintenance",Q4
09/02/2017,BUSINESS & CUSTOMER SERVICES,Cofely Workplace Ltd,FACILITIES MANAGEMENT," 55,358.93 ","Works - Construction, Repair & Maint.Buildings.Repair & Maintenance",Q4
09/01/2017,CAPITAL CC,Sandwood Design & Build Ltd,"MAINTENANCE - EQUIPMENT, FURNITURE AND MATERIALS"," 55,290.00 ","Works - Construction, Repair & Maint.Buildings.Construction",Q4
30/01/2017,CAPITAL CC,Kier Construction Ltd,FACILITIES MANAGEMENT," 55,177.94 ","Works - Construction, Repair & Maint.Buildings.Repair & Maintenance",Q4
05/01/2017,"NEIGHBOURHOODS, ENVIRONMENT & EMPLOYMENT",F M Conway Ltd_d,"MAINTENANCE - EQUIPMENT, FURNITURE AND MATERIALS"," 55,089.41 ","Works - Construction, Repair & Maint.Roads.Repair & Maintenance",Q4
09/02/2017,HOUSING SERVICES (HRA),Arcadis LLP,CONSULTANCY FEES," 54,733.79 ","Works - Construction, Repair & Maint.Consultancy.NA",Q4
09/03/2017,HOUSING SERVICES (HRA),Morrison Facilities Services Ltd_d,WATER AND SEWERAGE," 54,712.00 ",Cleaning & Janitorial.Cleaning Service.External,Q4
01/02/2017,BUSINESS TRANSFORMATION,Specialist Computer Centers Plc,ICT SOFTWARE," 53,905.20 ",Information Communication Technology.Software.NA,Q4
20/03/2017,ADULT SOCIAL CARE,Parkcare Homes Ltd (No.2) - KENT,RESIDENTIAL PLACEMENTS - PRIVATE CONTRACTORS PAYMENT," 53,864.19 ",Social Community Care Supplies & Service.Adult.NA,Q4
20/03/2017,ADULT SOCIAL CARE,Parkcare Homes Ltd (No.2) - KENT,RESIDENTIAL PLACEMENTS - PRIVATE CONTRACTORS PAYMENT," 53,864.19 ",Social Community Care Supplies & Service.Adult.NA,Q4
01/03/2017,CAPITAL CC,Tibbalds Planning and Urban Design Ltd,CONSULTANCY FEES," 53,650.31 ","Works - Construction, Repair & Maint.Consultancy.NA",Q4
06/01/2017,"NEIGHBOURHOODS, ENVIRONMENT & EMPLOYMENT",JMP Consultants Ltd,PROFESSIONAL SERVICES - GENERAL," 53,485.00 ",Street & Traffic Management.Planning.NA,Q4
30/01/2017,"NEIGHBOURHOODS, ENVIRONMENT & EMPLOYMENT",F M Conway Ltd_d,"MAINTENANCE - EQUIPMENT, FURNITURE AND MATERIALS"," 53,483.63 ","Works - Construction, Repair & Maint.Roads.Repair & Maintenance",Q4
25/01/2017,"NEIGHBOURHOODS, ENVIRONMENT & EMPLOYMENT",F M Conway Ltd_d,"MAINTENANCE - EQUIPMENT, FURNITURE AND MATERIALS"," 53,206.46 ","Works - Construction, Repair & Maint.Roads.Repair & Maintenance",Q4
17/03/2017,"NEIGHBOURHOODS, ENVIRONMENT & EMPLOYMENT",City Suburban Tree Surgeons Ltd,OPEN SPACES WORKS," 52,584.73 ","Works - Construction, Repair & Maint.Open Spaces.Repair & Maintenance",Q4
22/03/2017,CAPITAL CC,T Brown Group Ltd_d,BUILDING ALTERATIONS AND MATERIALS," 52,392.76 ",Building Construction Materials.Heating & Air Conditioning.NA,Q4
13/03/2017,CAPITAL CC,Oco Ltd_d,BUILDING ALTERATIONS AND MATERIALS," 51,834.16 ",Building Construction Materials.Heating & Air Conditioning.NA,Q4
27/01/2017,"NEIGHBOURHOODS, ENVIRONMENT & EMPLOYMENT",F M Conway Ltd_d,"MAINTENANCE - EQUIPMENT, FURNITURE AND MATERIALS"," 51,807.59 ","Works - Construction, Repair & Maint.Roads.Repair & Maintenance",Q4
28/02/2017,CAPITAL CC,Keepmoat Regeneration Ltd,"MAINTENANCE - EQUIPMENT, FURNITURE AND MATERIALS"," 51,797.01 ","Works - Construction, Repair & Maint.Buildings.Construction",Q4
22/03/2017,CHILDREN'S SERVICES,Parkview Care Broadstairs Ltd,RESIDENTIAL PLACEMENTS - PRIVATE CONTRACTORS PAYMENT," 51,755.72 ",Social Community Care Supplies & Service.Children.Childcare Services,Q4
31/01/2017,CAPITAL CC,Keepmoat Regeneration Ltd,"MAINTENANCE - EQUIPMENT, FURNITURE AND MATERIALS"," 51,587.36 ","Works - Construction, Repair & Maint.Buildings.Construction",Q4
26/01/2017,SENIOR MANAGEMENT - ADULTS & PUBLIC HEALTH,NHS Lambeth Clinical Commissioning Group,PAYMENT TO HEALTH AUTHORITIES," 51,379.43 ",Healthcare.Public Health.NA,Q4
13/03/2017,BUSINESS TRANSFORMATION,Virgin Media Business,ICT MAINTENANCE AND SUPPORT," 51,334.00 ",Information Communication Technology.Services.NA,Q4
16/03/2017,ADULT SOCIAL CARE,Clareville Lodge,SUPPORTED OTHER ACCOMMODATION - PRIVATE CONTRACTORS PAYMENT," 51,211.29 ",Social Community Care Supplies & Service.Adult.Sheltered Accommodation,Q4
03/03/2017,CAPITAL CC,Breyer Group Plc_d,"MAINTENANCE - EQUIPMENT, FURNITURE AND MATERIALS"," 50,460.13 ","Works - Construction, Repair & Maint.Buildings.Construction",Q4
22/03/2017,CAPITAL CC,Breyer Group Plc_d,"MAINTENANCE - EQUIPMENT, FURNITURE AND MATERIALS"," 50,451.77 ","Works - Construction, Repair & Maint.Buildings.Construction",Q4
06/03/2017,CAPITAL CC,Keepmoat Regeneration Ltd,"MAINTENANCE - EQUIPMENT, FURNITURE AND MATERIALS"," 50,297.92 ","Works - Construction, Repair & Maint.Buildings.Construction",Q4
10/02/2017,"NEIGHBOURHOODS, ENVIRONMENT & EMPLOYMENT",F M Conway Ltd_d,"MAINTENANCE - EQUIPMENT, FURNITURE AND MATERIALS"," 50,000.00 ","Works - Construction, Repair & Maint.Roads.Repair & Maintenance",Q4
10/02/2017,"NEIGHBOURHOODS, ENVIRONMENT & EMPLOYMENT",F M Conway Ltd_d,"MAINTENANCE - EQUIPMENT, FURNITURE AND MATERIALS"," 50,000.00 ","Works - Construction, Repair & Maint.Roads.Repair & Maintenance",Q4
14/02/2017,ADULT SOCIAL CARE,NHS Lambeth Clinical Commissioning Group,PAYMENT TO HEALTH AUTHORITIES," 50,000.00 ",Healthcare.Public Health.NA,Q4
15/03/2017,CAPITAL CC,Willmott Dixon Construction Ltd,"PURCHASE - EQUIPMENT, FURNITURE AND MATERIALS"," 49,989.00 ",Furniture & Soft Furnishings.Commercial Furniture.NA,Q4
22/03/2017,CAPITAL CC,Mears Ltd,FACILITIES MANAGEMENT," 49,794.49 ","Works - Construction, Repair & Maint.Buildings.Repair & Maintenance",Q4
09/03/2017,HUMAN RESOURCES & ORGANISATIONAL DEVELOPMENT,London Borough of Southwark,STAFF RECRUITMENT COSTS," 49,782.26 ",Human Resources.Recruitment & Assessment.NA,Q4
03/01/2017,CAPITAL CC,F M Conway Ltd_d,OPEN SPACES WORKS," 49,716.97 ","Works - Construction, Repair & Maint.Open Spaces.NA",Q4
20/02/2017,ADULT SOCIAL CARE,Metropolitan Housing Trust London,PRIVATE CONTRACTORS PAYMENT - OTHER," 49,608.00 ",Social Community Care Supplies & Service.Adult.Residential Care,Q4
07/03/2017,"NEIGHBOURHOODS, ENVIRONMENT & EMPLOYMENT",F M Conway Ltd_d,"MAINTENANCE - EQUIPMENT, FURNITURE AND MATERIALS"," 49,246.07 ","Works - Construction, Repair & Maint.Roads.Repair & Maintenance",Q4
22/03/2017,CAPITAL CC,Oco Ltd_d,BUILDING ALTERATIONS AND MATERIALS," 49,222.52 ",Building Construction Materials.Heating & Air Conditioning.NA,Q4
17/02/2017,PUBLIC HEALTH,Equinox Care Ltd,PAYMENT TO HEALTH AUTHORITIES," 49,092.50 ",Healthcare.Public Health.NA,Q4
02/02/2017,FINANCE,Mayor's Office for Policing and Crime,CONSULTANCY FEES," 49,073.81 ",Consultancy.Technical & Feasibility.NA,Q4
19/01/2017,"STRATEGIC HOUSING, REGENERATION & COMMUNITIES",Saint Mungo Association,STREET POPULATION SERVICES - PRIVATE CONTRACTORS PAYMENT," 48,959.20 ","Social Community Care Supplies & Service.Adult.Temporary Accommodation, Hostels",Q4
16/02/2017,"STRATEGIC HOUSING, REGENERATION & COMMUNITIES",Saint Mungo Association,STREET POPULATION SERVICES - PRIVATE CONTRACTORS PAYMENT," 48,959.20 ","Social Community Care Supplies & Service.Adult.Temporary Accommodation, Hostels",Q4
22/03/2017,CAPITAL CC,Architecture 00,CONSULTANCY FEES," 48,952.75 ",Consultancy.Management.Efficiency,Q4
24/02/2017,ADULT SOCIAL CARE,Dunheved Lodge,RESIDENTIAL PLACEMENTS - PRIVATE CONTRACTORS PAYMENT," 48,900.00 ",Social Community Care Supplies & Service.Adult.Residential Care,Q4
30/01/2017,"NEIGHBOURHOODS, ENVIRONMENT & EMPLOYMENT",F M Conway Ltd_d,"MAINTENANCE - EQUIPMENT, FURNITURE AND MATERIALS"," 48,755.87 ","Works - Construction, Repair & Maint.Roads.Repair & Maintenance",Q4
01/03/2017,HOUSING SERVICES (HRA),Libra Construction Services Ltd,FACILITIES MANAGEMENT," 48,751.00 ","Works - Construction, Repair & Maint.Buildings.Repair & Maintenance",Q4
19/01/2017,"STRATEGIC HOUSING, REGENERATION & COMMUNITIES",Refuge,FLOATING SUPPORT SERVICES - PRIVATE CONTRACTORS PAYMENT," 48,330.24 ",Social Community Care Supplies & Service.Adult.Advice & Counselling Services,Q4
16/02/2017,"STRATEGIC HOUSING, REGENERATION & COMMUNITIES",Refuge,FLOATING SUPPORT SERVICES - PRIVATE CONTRACTORS PAYMENT," 48,330.24 ",Social Community Care Supplies & Service.Adult.Advice & Counselling Services,Q4
05/01/2017,CAPITAL CC,F M Conway Ltd_d,"MAINTENANCE - EQUIPMENT, FURNITURE AND MATERIALS"," 48,173.21 ","Works - Construction, Repair & Maint.Roads.Repair & Maintenance",Q4
20/01/2017,"NEIGHBOURHOODS, ENVIRONMENT & EMPLOYMENT",Streatham Common Community Operations Ltd,OPEN SPACES WORKS," 47,750.00 ","Works - Construction, Repair & Maint.Open Spaces.NA",Q4
28/02/2017,CAPITAL CC,Igloo Regeneration Ltd,"MAINTENANCE - EQUIPMENT, FURNITURE AND MATERIALS"," 47,276.57 ","Works - Construction, Repair & Maint.Roads.Reconstruction & Resurfacing",Q4
25/01/2017,ADULT SOCIAL CARE,Windmill Care Centre,RESIDENTIAL PLACEMENTS - PRIVATE CONTRACTORS PAYMENT," 47,151.00 ",Social Community Care Supplies & Service.Adult.Residential Care,Q4
22/03/2017,ADULT SOCIAL CARE,Windmill Care Centre,RESIDENTIAL PLACEMENTS - PRIVATE CONTRACTORS PAYMENT," 47,151.00 ",Social Community Care Supplies & Service.Adult.Residential Care,Q4
12/01/2017,ADULT SOCIAL CARE,Allied Healthcare (UK) Ltd,DOMICILIARY CARE - THIRD PARTY," 46,961.28 ",Social Community Care Supplies & Service.Adult.Domiciliary Care,Q4
19/01/2017,"STRATEGIC HOUSING, REGENERATION & COMMUNITIES",Thames Reach,PRIVATE CONTRACTORS PAYMENT - OTHER," 46,884.68 ",Healthcare.Public Health.NA,Q4
16/02/2017,"STRATEGIC HOUSING, REGENERATION & COMMUNITIES",Thames Reach,PRIVATE CONTRACTORS PAYMENT - OTHER," 46,884.68 ",Healthcare.Public Health.NA,Q4
09/03/2017,CAPITAL CC,Potter Raper Partnership,CONSULTANCY FEES," 46,815.92 ",Consultancy.Technical & Feasibility.NA,Q4
09/03/2017,CAPITAL CC,Potter Raper Partnership,CONSULTANCY FEES," 46,815.92 ","Works - Construction, Repair & Maint.Consultancy.NA",Q4
21/03/2017,"PLANNING, TRANSPORT & DEVELOPMENT",IDOX Software Ltd,ICT SOFTWARE," 46,495.89 ",Information Communication Technology.Software.Customised & Bespoke,Q4
25/01/2017,"NEIGHBOURHOODS, ENVIRONMENT & EMPLOYMENT",Veolia ES (UK) Ltd,WASTE DISPOSAL COSTS," 46,167.09 ",Environmental Services.Waste Management.NA,Q4
28/02/2017,"NEIGHBOURHOODS, ENVIRONMENT & EMPLOYMENT",Veolia ES (UK) Ltd,WASTE DISPOSAL COSTS," 46,167.09 ",Environmental Services.Waste Management.NA,Q4
21/03/2017,"NEIGHBOURHOODS, ENVIRONMENT & EMPLOYMENT",Veolia ES (UK) Ltd,WASTE DISPOSAL COSTS," 46,167.09 ",Environmental Services.Waste Management.NA,Q4
22/03/2017,CAPITAL CC,Tibbalds Planning and Urban Design Ltd,CONSULTANCY FEES," 46,147.57 ","Works - Construction, Repair & Maint.Consultancy.NA",Q4
19/01/2017,"STRATEGIC HOUSING, REGENERATION & COMMUNITIES",Single Homeless Project,FLOATING SUPPORT SERVICES - PRIVATE CONTRACTORS PAYMENT," 46,027.40 ",Social Community Care Supplies & Service.Adult.Sheltered Accommodation,Q4
16/02/2017,"STRATEGIC HOUSING, REGENERATION & COMMUNITIES",Single Homeless Project,FLOATING SUPPORT SERVICES - PRIVATE CONTRACTORS PAYMENT," 46,027.40 ",Social Community Care Supplies & Service.Adult.Sheltered Accommodation,Q4
09/02/2017,CAPITAL CC,Tibbalds Planning and Urban Design Ltd,CONSULTANCY FEES," 45,557.10 ","Works - Construction, Repair & Maint.Consultancy.NA",Q4
20/03/2017,CAPITAL CC,Virgin Media Business,LAND LINE TELEPHONE COSTS," 45,524.00 ",Information Communication Technology.Telecommunications.NA,Q4
11/01/2017,PUBLIC HEALTH,George & Dragon London LLP,CONSULTANCY FEES," 45,000.00 ",Consultancy.Management.Efficiency,Q4
11/01/2017,PUBLIC HEALTH,George & Dragon London LLP,CONSULTANCY FEES," 45,000.00 ",Consultancy.Management.Efficiency,Q4
23/01/2017,CAPITAL CC,Breyer Group Plc_d,"MAINTENANCE - EQUIPMENT, FURNITURE AND MATERIALS"," 44,313.20 ","Works - Construction, Repair & Maint.Buildings.Construction",Q4
31/01/2017,ADULT SOCIAL CARE,Allied Healthcare (UK) Ltd,DOMICILIARY CARE - THIRD PARTY," 44,250.12 ",Social Community Care Supplies & Service.Adult.Domiciliary Care,Q4
22/03/2017,CHILDREN'S SERVICES,Ownlife Ltd,RESIDENTIAL PLACEMENTS - PRIVATE CONTRACTORS PAYMENT," 44,003.14 ",Social Community Care Supplies & Service.Children.NA,Q4
22/03/2017,BUSINESS & CUSTOMER SERVICES,Cofely Workplace Ltd,SECURITY SERVICES (EXCLUDING PREMISES)," 43,902.24 ",Facilities & Management Services.Security.NA,Q4
08/03/2017,"NEIGHBOURHOODS, ENVIRONMENT & EMPLOYMENT",London Councils,CONSULTANCY FEES," 43,830.29 ",Consultancy.Strategic Planning.NA,Q4
22/03/2017,CHILDREN'S SERVICES,National Fostering Agency,FOSTERING AGENCY PLACEMENTS - PRIVATE CONTRACTORS PAYMENT," 43,388.13 ",Social Community Care Supplies & Service.Children.Fostering,Q4
31/01/2017,"NEIGHBOURHOODS, ENVIRONMENT & EMPLOYMENT",City Suburban Tree Surgeons Ltd,OPEN SPACES WORKS," 43,341.42 ","Works - Construction, Repair & Maint.Open Spaces.Repair & Maintenance",Q4
22/03/2017,"STRATEGIC HOUSING, REGENERATION & COMMUNITIES (HRA)",PRP Architects,CONSULTANCY FEES," 43,330.00 ",Consultancy.Technical & Feasibility.NA,Q4
22/03/2017,"STRATEGIC HOUSING, REGENERATION & COMMUNITIES (HRA)",PRP Architects,CONSULTANCY FEES," 43,330.00 ",Consultancy.Technical & Feasibility.NA,Q4
07/02/2017,HOUSING SERVICES (HRA),Morrison Facilities Services Ltd_d,CLEANING SERVICES," 43,263.33 ",Cleaning & Janitorial.Cleaning Service.External,Q4
19/01/2017,BUSINESS TRANSFORMATION,Telefonica (UK) Ltd,LAND LINE TELEPHONE COSTS," 43,250.00 ",Information Communication Technology.Telecommunications.NA,Q4
23/01/2017,HOUSING SERVICES (HRA),PA Group,HEALTH AND SAFETY WORKS," 43,220.00 ",Environmental Services.Demolition & Asbestos Removal.NA,Q4
22/03/2017,CAPITAL CC,Breyer Group Plc_d,"MAINTENANCE - EQUIPMENT, FURNITURE AND MATERIALS"," 43,171.15 ","Works - Construction, Repair & Maint.Buildings.Construction",Q4
24/01/2017,CAPITAL CC,Mitie Property Services (UK) Ltd_d,"MAINTENANCE - EQUIPMENT, FURNITURE AND MATERIALS"," 42,874.53 ","Works - Construction, Repair & Maint.Buildings.Construction",Q4
24/01/2017,PUBLIC HEALTH,Blenheim CDP,PRIVATE CONTRACTORS PAYMENT - OTHER," 42,750.00 ",Social Community Care Supplies & Service.Adult.Advice & Counselling Services,Q4
24/02/2017,ADULT SOCIAL CARE,Windmill Care Centre,RESIDENTIAL PLACEMENTS - PRIVATE CONTRACTORS PAYMENT," 42,588.00 ",Social Community Care Supplies & Service.Adult.Residential Care,Q4
23/02/2017,HOUSING SERVICES (HRA),Morrison Facilities Services Ltd_d,RESPONSIVE REPAIRS - BUILDING," 42,442.40 ",Cleaning & Janitorial.Cleaning Service.External,Q4
22/03/2017,CAPITAL CC,F M Conway Ltd_d,"MAINTENANCE - EQUIPMENT, FURNITURE AND MATERIALS"," 42,436.16 ","Works - Construction, Repair & Maint.Roads.Repair & Maintenance",Q4
01/02/2017,PUBLIC HEALTH,Central & North West London NHS Foundation Trust,PAYMENT TO HEALTH AUTHORITIES," 42,426.59 ",Healthcare.Public Health.NA,Q4
01/03/2017,BUSINESS & CUSTOMER SERVICES,Cofely Workplace Ltd,SECURITY SERVICES (EXCLUDING PREMISES)," 42,354.73 ",Facilities & Management Services.Security.NA,Q4
14/03/2017,BUSINESS & CUSTOMER SERVICES,Rendall & Rittner Ltd,FACILITIES MANAGEMENT," 42,313.49 ",Facilities & Management Services.Property Management.NA,Q4
12/01/2017,ADULT SOCIAL CARE,NHS Lambeth Clinical Commissioning Group,PAYMENT TO HEALTH AUTHORITIES," 42,259.60 ",Healthcare.Public Health.NA,Q4
01/02/2017,CAPITAL CC,Tibbalds Planning and Urban Design Ltd,CONSULTANCY FEES," 42,091.30 ","Works - Construction, Repair & Maint.Consultancy.NA",Q4
13/03/2017,PUBLIC HEALTH,Carat,PAYMENT TO HEALTH AUTHORITIES," 41,985.48 ",Healthcare.Public Health.NA,Q4
01/03/2017,CHILDREN'S SERVICES,Education Development Trust,PROFESSIONAL SERVICES - GENERAL," 41,589.64 ",Education.School Services.NA,Q4
11/01/2017,BUSINESS & CUSTOMER SERVICES,Interserve Consulting_d,CONSULTANCY FEES," 41,448.90 ","Works - Construction, Repair & Maint.Consultancy.NA",Q4
01/02/2017,"STRATEGIC HOUSING, REGENERATION & COMMUNITIES",OCS Group UK Ltd t/a Cannon,"PURCHASE - EQUIPMENT, FURNITURE AND MATERIALS"," 41,062.00 ",Street & Traffic Management.Closed-Circuit Television.NA,Q4
23/02/2017,"STRATEGIC HOUSING, REGENERATION & COMMUNITIES",OCS Group UK Ltd t/a Cannon,"PURCHASE - EQUIPMENT, FURNITURE AND MATERIALS"," 41,062.00 ",Street & Traffic Management.Closed-Circuit Television.NA,Q4
22/03/2017,"STRATEGIC HOUSING, REGENERATION & COMMUNITIES",OCS Group UK Ltd t/a Cannon,"PURCHASE - EQUIPMENT, FURNITURE AND MATERIALS"," 41,062.00 ",Street & Traffic Management.Closed-Circuit Television.NA,Q4
23/02/2017,FINANCE,Lambert Smith Hampton Group Ltd,CONSULTANCY FEES," 40,771.96 ",Consultancy.Technical & Feasibility.NA,Q4
09/02/2017,BUSINESS & CUSTOMER SERVICES,Cofely Workplace Ltd,SECURITY SERVICES (EXCLUDING PREMISES)," 40,421.97 ",Facilities & Management Services.Security.NA,Q4
22/03/2017,HOUSING SERVICES (HRA),Northgate Public Services (UK) Limited,CONSULTANCY FEES," 40,250.00 ",Information Communication Technology.Services.Consultancy,Q4
09/03/2017,"NEIGHBOURHOODS, ENVIRONMENT & EMPLOYMENT",City of London,BED & BREAKFAST - PRIVATE CONTRACTORS PAYMENT," 40,000.00 ","Social Community Care Supplies & Service.Adult.Temporary Accommodation, Short Stay",Q4
31/01/2017,CAPITAL CC,City Suburban Tree Surgeons Ltd,OPEN SPACES WORKS," 40,000.00 ","Works - Construction, Repair & Maint.Open Spaces.Repair & Maintenance",Q4
24/02/2017,PUBLIC HEALTH,Foundation66,PAYMENT TO HEALTH AUTHORITIES," 40,000.00 ",Healthcare.Public Health.NA,Q4
09/02/2017,CAPITAL CC,London Bus Services Ltd,VEHICLE REPAIRS AND MAINTENANCE," 39,909.85 ",Public Transport.Maintenance.NA,Q4
17/02/2017,PUBLIC HEALTH,Central & North West London NHS Foundation Trust,PAYMENT TO HEALTH AUTHORITIES," 39,774.07 ",Healthcare.Public Health.NA,Q4
18/01/2017,HOUSING SERVICES (HRA),Keepmoat Regeneration Ltd,FACILITIES MANAGEMENT," 39,659.10 ","Works - Construction, Repair & Maint.Buildings.Repair & Maintenance",Q4
18/01/2017,HOUSING SERVICES (HRA),Keepmoat Regeneration Ltd,FACILITIES MANAGEMENT," 39,659.10 ","Works - Construction, Repair & Maint.Buildings.Repair & Maintenance",Q4
18/01/2017,HOUSING SERVICES (HRA),Keepmoat Regeneration Ltd,FACILITIES MANAGEMENT," 39,659.10 ","Works - Construction, Repair & Maint.Buildings.Repair & Maintenance",Q4
09/03/2017,HOUSING SERVICES (HRA),Keepmoat Regeneration Ltd,FACILITIES MANAGEMENT," 39,659.10 ","Works - Construction, Repair & Maint.Buildings.Repair & Maintenance",Q4
22/03/2017,ADULT SOCIAL CARE,Allied Healthcare (UK) Ltd,DOMICILIARY CARE - THIRD PARTY," 39,596.04 ",Social Community Care Supplies & Service.Adult.Domiciliary Care,Q4
06/01/2017,BUSINESS & CUSTOMER SERVICES,Cofely Workplace Ltd,SECURITY SERVICES (EXCLUDING PREMISES)," 39,578.48 ",Facilities & Management Services.Security.NA,Q4
03/01/2017,"NEIGHBOURHOODS, ENVIRONMENT & EMPLOYMENT",Greenwich Leisure Ltd,ARTS AND LEISURE COSTS," 39,446.67 ",Arts & Leisure Services.Outsourced Service.NA,Q4
31/01/2017,"NEIGHBOURHOODS, ENVIRONMENT & EMPLOYMENT",Greenwich Leisure Ltd,ARTS AND LEISURE COSTS," 39,446.67 ",Arts & Leisure Services.Outsourced Service.NA,Q4
13/03/2017,"NEIGHBOURHOODS, ENVIRONMENT & EMPLOYMENT",Greenwich Leisure Ltd,ARTS AND LEISURE COSTS," 39,446.67 ",Arts & Leisure Services.Outsourced Service.NA,Q4
22/03/2017,HOUSING SERVICES (HRA),Morrison Facilities Services Ltd_d,CLEANING SERVICES," 39,386.73 ",Cleaning & Janitorial.Cleaning Service.External,Q4
27/02/2017,ADULT SOCIAL CARE,Allied Healthcare (UK) Ltd,DOMICILIARY CARE - THIRD PARTY," 39,256.68 ",Social Community Care Supplies & Service.Adult.Domiciliary Care,Q4
10/03/2017,"NEIGHBOURHOODS, ENVIRONMENT & EMPLOYMENT",F M Conway Ltd_d,"MAINTENANCE - EQUIPMENT, FURNITURE AND MATERIALS"," 39,217.12 ","Works - Construction, Repair & Maint.Roads.Repair & Maintenance",Q4
15/02/2017,ADULT SOCIAL CARE,NHS Lambeth Clinical Commissioning Group,PAYMENT TO HEALTH AUTHORITIES," 39,000.00 ",Healthcare.Public Health.NA,Q4
15/02/2017,ADULT SOCIAL CARE,NHS Lambeth Clinical Commissioning Group,PAYMENT TO HEALTH AUTHORITIES," 39,000.00 ",Healthcare.Public Health.NA,Q4
22/02/2017,ADULT SOCIAL CARE,National Autistic Society,DAYCARE - PRIVATE CONTRACTORS PAYMENT," 38,882.16 ",Social Community Care Supplies & Service.Adult.Day Care,Q4
24/01/2017,FINANCE,Browne Jacobson Solicitors,LEGAL FEES," 38,774.43 ",Legal Services.General Support.NA,Q4
22/03/2017,INVESTMENT & GROWTH,Essentia Trading Ltd,PAYMENT TO HEALTH AUTHORITIES," 38,598.00 ",Healthcare.Services.NA,Q4
06/03/2017,HOUSING SERVICES (HRA),Morrison Facilities Services Ltd_d,CLEANING SERVICES," 38,462.10 ",Cleaning & Janitorial.Cleaning Service.External,Q4
30/01/2017,PUBLIC HEALTH,Brook Young People,PAYMENT TO HEALTH AUTHORITIES," 38,304.50 ",Healthcare.Public Health.NA,Q4
15/03/2017,PUBLIC HEALTH,Brook Young People,PAYMENT TO HEALTH AUTHORITIES," 38,304.50 ",Healthcare.Public Health.NA,Q4
06/02/2017,HOUSING SERVICES (HRA),Oco Ltd_d,RESPONSIVE REPAIRS - MECHANICAL AND ELECTRICAL," 38,280.06 ",Building Construction Materials.Heating & Air Conditioning.NA,Q4
13/03/2017,HOUSING SERVICES (HRA),Oco Ltd_d,RESPONSIVE REPAIRS - MECHANICAL AND ELECTRICAL," 38,280.06 ",Building Construction Materials.Heating & Air Conditioning.NA,Q4
23/03/2017,HOUSING SERVICES (HRA),Oco Ltd_d,RESPONSIVE REPAIRS - MECHANICAL AND ELECTRICAL," 38,280.06 ",Building Construction Materials.Heating & Air Conditioning.NA,Q4
13/03/2017,HOUSING SERVICES (HRA),Access Garage Doors Ltd,BUILDING ALTERATIONS AND MATERIALS," 38,245.80 ",Building Construction Materials.Fencing.NA,Q4
21/02/2017,"NEIGHBOURHOODS, ENVIRONMENT & EMPLOYMENT",Western Riverside Waste Authority,WASTE DISPOSAL COSTS," 38,064.81 ",Environmental Services.Waste Management.NA,Q4
19/01/2017,"STRATEGIC HOUSING, REGENERATION & COMMUNITIES",Centrepoint Soho Ltd,PRIVATE CONTRACTORS PAYMENT - OTHER," 37,972.60 ",Social Community Care Supplies & Service.Adult.Sheltered Accommodation,Q4
16/02/2017,"STRATEGIC HOUSING, REGENERATION & COMMUNITIES",Centrepoint Soho Ltd,PRIVATE CONTRACTORS PAYMENT - OTHER," 37,972.60 ",Social Community Care Supplies & Service.Adult.Sheltered Accommodation,Q4
22/02/2017,"NEIGHBOURHOODS, ENVIRONMENT & EMPLOYMENT",CVU_d,"MAINTENANCE - EQUIPMENT, FURNITURE AND MATERIALS"," 37,888.27 ","Works - Construction, Repair & Maint.Roads.Repair & Maintenance",Q4
13/03/2017,ADULT SOCIAL CARE,MiHomecare Ltd,DOMICILIARY CARE - THIRD PARTY," 37,865.10 ",Social Community Care Supplies & Service.Adult.Domiciliary Care,Q4
19/01/2017,"NEIGHBOURHOODS, ENVIRONMENT & EMPLOYMENT",London Councils,CONSULTANCY FEES," 37,850.73 ",Consultancy.Strategic Planning.NA,Q4
19/01/2017,CAPITAL CC,Neilcott Construction Ltd,BUILDING ALTERATIONS AND MATERIALS," 37,537.50 ","Works - Construction, Repair & Maint.Buildings.Construction",Q4
22/02/2017,"NEIGHBOURHOODS, ENVIRONMENT & EMPLOYMENT",CVU_d,"MAINTENANCE - EQUIPMENT, FURNITURE AND MATERIALS"," 37,534.32 ","Works - Construction, Repair & Maint.Roads.Repair & Maintenance",Q4
10/03/2017,CHILDREN'S SERVICES,Saint Michael's Fellowship,PRIVATE CONTRACTORS PAYMENT - OTHER," 37,500.00 ",Social Community Care Supplies & Service.Adult.Residential Care,Q4
31/01/2017,CAPITAL CC,Specialist Computer Centers Plc,ICT SOFTWARE," 37,399.95 ",Information Communication Technology.Software.NA,Q4
10/03/2017,CORPORATE AFFAIRS,Legastat Ltd,LEGAL FEES," 37,385.00 ",Legal Services.General Support.NA,Q4
06/01/2017,"NEIGHBOURHOODS, ENVIRONMENT & EMPLOYMENT",City Suburban Tree Surgeons Ltd,OPEN SPACES WORKS," 37,350.00 ","Works - Construction, Repair & Maint.Open Spaces.Repair & Maintenance",Q4
30/01/2017,"NEIGHBOURHOODS, ENVIRONMENT & EMPLOYMENT",F M Conway Ltd_d,"MAINTENANCE - EQUIPMENT, FURNITURE AND MATERIALS"," 36,465.15 ","Works - Construction, Repair & Maint.Roads.Repair & Maintenance",Q4
18/01/2017,CAPITAL CC,Breyer Group Plc_d,"MAINTENANCE - EQUIPMENT, FURNITURE AND MATERIALS"," 36,403.85 ","Works - Construction, Repair & Maint.Buildings.Construction",Q4
03/02/2017,CAPITAL CC,T Brown Group Ltd_d,BUILDING ALTERATIONS AND MATERIALS," 36,361.59 ",Building Construction Materials.Heating & Air Conditioning.NA,Q4
28/02/2017,BUSINESS TRANSFORMATION,Swiss Post Solutions Ltd,PRINTING," 36,302.00 ",Facilities & Management Services.Printing.NA,Q4
22/03/2017,BUSINESS TRANSFORMATION,Swiss Post Solutions Ltd,PRINTING," 36,302.00 ",Facilities & Management Services.Printing.NA,Q4
20/01/2017,BUSINESS TRANSFORMATION,Capgemini UK Plc,ICT SOFTWARE," 36,195.17 ",Information Communication Technology.Software.NA,Q4
20/01/2017,BUSINESS TRANSFORMATION,Capgemini UK Plc,ICT SOFTWARE," 36,175.17 ",Information Communication Technology.Software.NA,Q4
20/01/2017,BUSINESS TRANSFORMATION,Capgemini UK Plc,ICT SOFTWARE," 36,175.17 ",Information Communication Technology.Software.NA,Q4
08/03/2017,BUSINESS TRANSFORMATION,Capgemini UK Plc,ICT SOFTWARE," 36,175.17 ",Information Communication Technology.Software.NA,Q4
25/01/2017,HOUSING SERVICES (HRA),The Forshaw Group Ltd,CONSULTANCY FEES," 36,059.42 ",Consultancy.Business.NA,Q4
07/02/2017,HOUSING SERVICES (HRA),Centre 70 Advice Centre,LEGAL FEES," 36,000.00 ",Legal Services.General Support.NA,Q4
08/02/2017,CHILDREN'S SERVICES,Charlie Chaplin Adventure Playground,PRIVATE CONTRACTORS PAYMENT - OTHER," 35,999.10 ",Social Community Care Supplies & Service.Disabled Children.Play Services,Q4
01/03/2017,CAPITAL CC,Tibbalds Planning and Urban Design Ltd,CONSULTANCY FEES," 35,869.71 ","Works - Construction, Repair & Maint.Consultancy.NA",Q4
04/01/2017,ADULT SOCIAL CARE,MiHomecare Ltd,DOMICILIARY CARE - THIRD PARTY," 35,542.28 ",Social Community Care Supplies & Service.Adult.Domiciliary Care,Q4
01/02/2017,PUBLIC HEALTH,London Borough of Ealing,PAYMENT TO HEALTH AUTHORITIES," 35,360.00 ",Healthcare.Public Health.NA,Q4
30/01/2017,BUSINESS TRANSFORMATION,Swiss Post Solutions Ltd,PRINTING," 35,342.00 ",Facilities & Management Services.Printing.NA,Q4
13/03/2017,ADULT SOCIAL CARE,MiHomecare Ltd,DOMICILIARY CARE - THIRD PARTY," 35,295.54 ",Social Community Care Supplies & Service.Adult.Domiciliary Care,Q4
16/03/2017,CAPITAL CC,Jerram Falkus Construction Ltd,"MAINTENANCE - EQUIPMENT, FURNITURE AND MATERIALS"," 35,190.48 ","Works - Construction, Repair & Maint.Buildings.Construction",Q4
16/03/2017,CAPITAL CC,Jerram Falkus Construction Ltd,"MAINTENANCE - EQUIPMENT, FURNITURE AND MATERIALS"," 35,190.48 ","Works - Construction, Repair & Maint.Buildings.Construction",Q4
13/03/2017,ADULT SOCIAL CARE,MiHomecare Ltd,DOMICILIARY CARE - THIRD PARTY," 35,084.07 ",Social Community Care Supplies & Service.Adult.Domiciliary Care,Q4
15/03/2017,PUBLIC HEALTH,Guys & St Thomas NHS Foundation Trust,PAYMENT TO HEALTH AUTHORITIES," 35,000.00 ",Healthcare.Public Health.NA,Q4
04/01/2017,HOUSING SERVICES (HRA),PricewaterhouseCoopers LLP,AUDIT FEES," 35,000.00 ",Financial Services.Audit.NA,Q4
04/01/2017,EDUCATION & LEARNING,Civica UK Ltd,ICT MAINTENANCE AND SUPPORT," 34,975.67 ",Information Communication Technology.Services.Maintenance & Support,Q4
08/02/2017,EDUCATION & LEARNING,Civica UK Ltd,ICT MAINTENANCE AND SUPPORT," 34,975.67 ",Information Communication Technology.Services.Maintenance & Support,Q4
10/03/2017,EDUCATION & LEARNING,Civica UK Ltd,ICT MAINTENANCE AND SUPPORT," 34,975.67 ",Information Communication Technology.Services.Maintenance & Support,Q4
23/01/2017,PUBLIC HEALTH,St George's Healthcare NHS Trust,PAYMENT TO HEALTH AUTHORITIES," 34,840.32 ",Healthcare.Public Health.NA,Q4
18/01/2017,CAPITAL CC,Faithful & Gould,CONSULTANCY FEES," 34,837.73 ",Consultancy.Procurement.NA,Q4
09/03/2017,EDUCATION & LEARNING,Charlton Park Academy,PRIVATE CONTRACTORS PAYMENT - OTHER," 34,801.55 ",Social Community Care Supplies & Service.Children.Residential Care,Q4
22/03/2017,ADULT SOCIAL CARE,Frontier Support Services Ltd,SUPPORTED OTHER ACCOMMODATION - PRIVATE CONTRACTORS PAYMENT," 34,746.22 ",Social Community Care Supplies & Service.Adult.Domiciliary Care,Q4
22/03/2017,BUSINESS & CUSTOMER SERVICES,Chartwell Properties Ltd,RENTS PAYABLE," 34,740.00 ",Financial Services.Rents.NA,Q4
16/03/2017,CAPITAL CC,Jerram Falkus Construction Ltd,"MAINTENANCE - EQUIPMENT, FURNITURE AND MATERIALS"," 34,707.00 ","Works - Construction, Repair & Maint.Buildings.Construction",Q4
19/01/2017,ADULT SOCIAL CARE,Southside Partnership,PRIVATE CONTRACTORS PAYMENT - OTHER," 34,541.96 ",Social Community Care Supplies & Service.Adult.NA,Q4
16/02/2017,ADULT SOCIAL CARE,Southside Partnership,PRIVATE CONTRACTORS PAYMENT - OTHER," 34,541.96 ",Social Community Care Supplies & Service.Adult.NA,Q4
11/01/2017,ADULT SOCIAL CARE,Face Recording & Measurement Systems Ltd,"PURCHASE - EQUIPMENT, FURNITURE AND MATERIALS"," 34,402.00 ",Social Community Care Supplies & Service.Supplies.NA,Q4
21/02/2017,ADULT SOCIAL CARE,Age UK Lambeth,PRIVATE CONTRACTORS PAYMENT - OTHER," 34,328.00 ",Social Community Care Supplies & Service.Adult.NA,Q4
07/02/2017,CAPITAL CC,Bolt & Heeks Ltd,"MAINTENANCE - EQUIPMENT, FURNITURE AND MATERIALS"," 34,294.53 ","Works - Construction, Repair & Maint.Buildings.Construction",Q4
07/02/2017,CAPITAL CC,Bolt & Heeks Ltd,"MAINTENANCE - EQUIPMENT, FURNITURE AND MATERIALS"," 34,294.53 ","Works - Construction, Repair & Maint.Buildings.Construction",Q4
28/02/2017,BUSINESS & CUSTOMER SERVICES,Urban Concepts Communications,CONSULTANCY FEES," 34,159.60 ",Consultancy.Business.NA,Q4
24/02/2017,CAPITAL CC,Mitie Property Services (UK) Ltd_d,"MAINTENANCE - EQUIPMENT, FURNITURE AND MATERIALS"," 33,979.68 ","Works - Construction, Repair & Maint.Buildings.Construction",Q4
16/01/2017,ADULT SOCIAL CARE,MiHomecare Ltd,DOMICILIARY CARE - THIRD PARTY," 33,978.84 ",Social Community Care Supplies & Service.Adult.Domiciliary Care,Q4
27/01/2017,ADULT SOCIAL CARE,MiHomecare Ltd,DOMICILIARY CARE - THIRD PARTY," 33,978.84 ",Social Community Care Supplies & Service.Adult.Domiciliary Care,Q4
13/03/2017,ADULT SOCIAL CARE,MiHomecare Ltd,DOMICILIARY CARE - THIRD PARTY," 33,942.93 ",Social Community Care Supplies & Service.Adult.Domiciliary Care,Q4
07/03/2017,PUBLIC HEALTH,Terence Higgins Enterprises,PAYMENT TO HEALTH AUTHORITIES," 33,712.36 ",Healthcare.Public Health.NA,Q4
25/01/2017,CAPITAL CC,F M Conway Ltd_d,"MAINTENANCE - EQUIPMENT, FURNITURE AND MATERIALS"," 33,693.75 ","Works - Construction, Repair & Maint.Roads.Repair & Maintenance",Q4
15/02/2017,BUSINESS TRANSFORMATION,Virgin Media Business,ICT MAINTENANCE AND SUPPORT," 33,322.50 ",Information Communication Technology.Services.NA,Q4
06/01/2017,BUSINESS & CUSTOMER SERVICES,Cofely Workplace Ltd,FACILITIES MANAGEMENT," 33,229.34 ","Works - Construction, Repair & Maint.Buildings.Repair & Maintenance",Q4
19/01/2017,"STRATEGIC HOUSING, REGENERATION & COMMUNITIES",Thames Reach,PRIVATE CONTRACTORS PAYMENT - OTHER," 33,227.32 ",Healthcare.Public Health.NA,Q4
16/02/2017,"STRATEGIC HOUSING, REGENERATION & COMMUNITIES",Thames Reach,PRIVATE CONTRACTORS PAYMENT - OTHER," 33,227.32 ",Healthcare.Public Health.NA,Q4
22/02/2017,CAPITAL CC,Igloo Regeneration Ltd,"MAINTENANCE - EQUIPMENT, FURNITURE AND MATERIALS"," 33,215.97 ","Works - Construction, Repair & Maint.Roads.Reconstruction & Resurfacing",Q4
06/01/2017,CAPITAL CC,Baily Garner LLP,FACILITIES MANAGEMENT," 33,173.20 ","Works - Construction, Repair & Maint.Buildings.Repair & Maintenance",Q4
01/03/2017,BUSINESS & CUSTOMER SERVICES,Cofely Workplace Ltd,FACILITIES MANAGEMENT," 33,123.08 ","Works - Construction, Repair & Maint.Buildings.Repair & Maintenance",Q4
22/03/2017,BUSINESS & CUSTOMER SERVICES,Cofely Workplace Ltd,FACILITIES MANAGEMENT," 33,123.08 ","Works - Construction, Repair & Maint.Buildings.Repair & Maintenance",Q4
13/02/2017,"NEIGHBOURHOODS, ENVIRONMENT & EMPLOYMENT",F M Conway Ltd_d,OPEN SPACES WORKS," 33,061.14 ","Works - Construction, Repair & Maint.Open Spaces.NA",Q4
30/01/2017,"NEIGHBOURHOODS, ENVIRONMENT & EMPLOYMENT",F M Conway Ltd_d,"MAINTENANCE - EQUIPMENT, FURNITURE AND MATERIALS"," 33,034.92 ","Works - Construction, Repair & Maint.Roads.Repair & Maintenance",Q4
18/01/2017,CAPITAL CC,Hunter & Partners,"MAINTENANCE - EQUIPMENT, FURNITURE AND MATERIALS"," 32,993.10 ","Works - Construction, Repair & Maint.Architect.NA",Q4
23/02/2017,FINANCE,Lambert Smith Hampton Group Ltd,CONSULTANCY FEES," 32,987.66 ",Consultancy.Technical & Feasibility.NA,Q4
09/01/2017,PUBLIC HEALTH,Naz Project London,PAYMENT TO HEALTH AUTHORITIES," 32,738.92 ",Healthcare.Public Health.NA,Q4
27/01/2017,PUBLIC HEALTH,Naz Project London,PAYMENT TO HEALTH AUTHORITIES," 32,738.92 ",Healthcare.Public Health.NA,Q4
07/02/2017,PUBLIC HEALTH,Naz Project London,PAYMENT TO HEALTH AUTHORITIES," 32,738.92 ",Healthcare.Public Health.NA,Q4
15/03/2017,PUBLIC HEALTH,Naz Project London,PAYMENT TO HEALTH AUTHORITIES," 32,738.92 ",Healthcare.Public Health.NA,Q4
14/03/2017,PUBLIC HEALTH,Naz Project London,PAYMENT TO HEALTH AUTHORITIES," 32,738.92 ",Healthcare.Public Health.NA,Q4
08/02/2017,CAPITAL CC,Oco Ltd_d,BUILDING ALTERATIONS AND MATERIALS," 32,730.93 ",Building Construction Materials.Heating & Air Conditioning.NA,Q4
12/01/2017,CAPITAL CC,Lawtech Group Ltd,"MAINTENANCE - EQUIPMENT, FURNITURE AND MATERIALS"," 32,640.00 ","Works - Construction, Repair & Maint.Buildings.NA",Q4
06/01/2017,ADULT SOCIAL CARE,Allied Healthcare (UK) Ltd,DOMICILIARY CARE - THIRD PARTY," 32,375.91 ",Social Community Care Supplies & Service.Adult.Domiciliary Care,Q4
27/02/2017,ADULT SOCIAL CARE,Allied Healthcare (UK) Ltd,DOMICILIARY CARE - THIRD PARTY," 32,255.63 ",Social Community Care Supplies & Service.Adult.Domiciliary Care,Q4
04/01/2017,ADULT SOCIAL CARE,MiHomecare Ltd,DOMICILIARY CARE - THIRD PARTY," 32,211.43 ",Social Community Care Supplies & Service.Adult.Domiciliary Care,Q4
31/01/2017,ADULT SOCIAL CARE,Allied Healthcare (UK) Ltd,DOMICILIARY CARE - THIRD PARTY," 32,075.22 ",Social Community Care Supplies & Service.Adult.Domiciliary Care,Q4
09/02/2017,BUSINESS & CUSTOMER SERVICES,Cofely Workplace Ltd,FACILITIES MANAGEMENT," 31,990.17 ","Works - Construction, Repair & Maint.Buildings.Repair & Maintenance",Q4
21/03/2017,ADULT SOCIAL CARE,Allied Healthcare (UK) Ltd,DOMICILIARY CARE - THIRD PARTY," 31,969.10 ",Social Community Care Supplies & Service.Adult.Domiciliary Care,Q4
28/02/2017,CAPITAL CC,F M Conway Ltd_d,"MAINTENANCE - EQUIPMENT, FURNITURE AND MATERIALS"," 31,725.00 ","Works - Construction, Repair & Maint.Roads.Repair & Maintenance",Q4
22/02/2017,CHILDREN'S SERVICES,High Trees Community Development Trust,PRIVATE CONTRACTORS PAYMENT - OTHER," 31,666.00 ",Social Community Care Supplies & Service.Children.Childcare Services,Q4
09/03/2017,CHILDREN'S SERVICES,Lambeth Contact a Family,PRIVATE CONTRACTORS PAYMENT - OTHER," 31,608.50 ",Social Community Care Supplies & Service.Children.NA,Q4
04/01/2017,BUSINESS TRANSFORMATION,Telefonica (UK) Ltd,MOBILE PHONE COSTS," 31,568.02 ",Information Communication Technology.Telecommunications.Mobile,Q4
17/02/2017,CHILDREN'S SERVICES,Shine Fostering Agency,FOSTERING AGENCY PLACEMENTS - PRIVATE CONTRACTORS PAYMENT," 31,475.84 ",Social Community Care Supplies & Service.Children.Fostering,Q4
22/03/2017,ADULT SOCIAL CARE,Saint Mungo Association,STREET POPULATION SERVICES - PRIVATE CONTRACTORS PAYMENT," 31,473.77 ","Social Community Care Supplies & Service.Adult.Temporary Accommodation, Hostels",Q4
22/03/2017,"NEIGHBOURHOODS, ENVIRONMENT & EMPLOYMENT",DSI Billing Services Ltd,PHOTOCOPYING," 31,444.22 ",Facilities & Management Services.Reprographics.NA,Q4
13/03/2017,ADULT SOCIAL CARE,MiHomecare Ltd,DOMICILIARY CARE - THIRD PARTY," 31,281.60 ",Social Community Care Supplies & Service.Adult.Domiciliary Care,Q4
19/01/2017,ADULT SOCIAL CARE,Riverside ECHG,PRIVATE CONTRACTORS PAYMENT - OTHER," 31,114.24 ",Social Community Care Supplies & Service.Adult.Sheltered Accommodation,Q4
16/02/2017,ADULT SOCIAL CARE,Riverside ECHG,PRIVATE CONTRACTORS PAYMENT - OTHER," 31,114.24 ",Social Community Care Supplies & Service.Adult.Sheltered Accommodation,Q4
22/03/2017,ADULT SOCIAL CARE,Riverside ECHG,PRIVATE CONTRACTORS PAYMENT - OTHER," 31,114.24 ",Social Community Care Supplies & Service.Adult.Sheltered Accommodation,Q4
22/03/2017,ADULT SOCIAL CARE,Refuge,FLOATING SUPPORT SERVICES - PRIVATE CONTRACTORS PAYMENT," 31,069.44 ",Social Community Care Supplies & Service.Adult.Advice & Counselling Services,Q4
03/03/2017,CAPITAL CC,ME Construction Ltd,FACILITIES MANAGEMENT," 31,062.82 ","Works - Construction, Repair & Maint.Buildings.Repair & Maintenance",Q4
23/02/2017,HOUSING SERVICES (HRA),Morrison Facilities Services Ltd_d,RESPONSIVE REPAIRS - BUILDING," 30,949.15 ",Cleaning & Janitorial.Cleaning Service.External,Q4
06/01/2017,ADULT SOCIAL CARE,Allied Healthcare (UK) Ltd,DOMICILIARY CARE - THIRD PARTY," 30,940.21 ",Social Community Care Supplies & Service.Adult.Domiciliary Care,Q4
16/03/2017,BUSINESS TRANSFORMATION,ESRI (UK) Ltd,ICT MAINTENANCE AND SUPPORT," 30,829.00 ",Information Communication Technology.Services.Maintenance & Support,Q4
21/03/2017,CAPITAL CC,Hunter & Partners,"MAINTENANCE - EQUIPMENT, FURNITURE AND MATERIALS"," 30,748.13 ","Works - Construction, Repair & Maint.Architect.NA",Q4
31/01/2017,ADULT SOCIAL CARE,Allied Healthcare (UK) Ltd,DOMICILIARY CARE - THIRD PARTY," 30,646.07 ",Social Community Care Supplies & Service.Adult.Domiciliary Care,Q4
20/01/2017,CAPITAL CC,Keepmoat Regeneration Ltd,"MAINTENANCE - EQUIPMENT, FURNITURE AND MATERIALS"," 30,452.27 ","Works - Construction, Repair & Maint.Buildings.Construction",Q4
09/01/2017,CHILDREN'S SERVICES,South London & Maudsley (nhs) Trust,PRIVATE CONTRACTORS PAYMENT - OTHER," 30,421.00 ",Social Community Care Supplies & Service.Adult.NA,Q4
09/01/2017,CHILDREN'S SERVICES,South London & Maudsley (nhs) Trust,PRIVATE CONTRACTORS PAYMENT - OTHER," 30,421.00 ",Social Community Care Supplies & Service.Adult.NA,Q4
11/01/2017,CAPITAL CC,Mears Ltd,FACILITIES MANAGEMENT," 30,417.83 ","Works - Construction, Repair & Maint.Buildings.Repair & Maintenance",Q4
03/02/2017,PUBLIC HEALTH,Quality Medical Solutions,PAYMENT TO HEALTH AUTHORITIES," 30,379.25 ",Healthcare.Public Health.NA,Q4
19/01/2017,"STRATEGIC HOUSING, REGENERATION & COMMUNITIES",Look Ahead Housing & Care Ltd,PRIVATE CONTRACTORS PAYMENT - OTHER," 30,376.76 ",Social Community Care Supplies & Service.Adult.Mental Health Services,Q4
16/02/2017,"STRATEGIC HOUSING, REGENERATION & COMMUNITIES",Look Ahead Housing & Care Ltd,PRIVATE CONTRACTORS PAYMENT - OTHER," 30,376.76 ",Social Community Care Supplies & Service.Adult.Mental Health Services,Q4
03/01/2017,FINANCE,PricewaterhouseCoopers LLP,AUDIT FEES," 30,372.00 ",Financial Services.Audit.NA,Q4
03/02/2017,FINANCE,PricewaterhouseCoopers LLP,AUDIT FEES," 30,372.00 ",Financial Services.Audit.NA,Q4
06/03/2017,FINANCE,PricewaterhouseCoopers LLP,AUDIT FEES," 30,372.00 ",Financial Services.Audit.NA,Q4
06/01/2017,BUSINESS & CUSTOMER SERVICES,Cofely Workplace Ltd,CLEANING SERVICES," 30,360.29 ",Cleaning & Janitorial.Cleaning Service.Internal,Q4
22/03/2017,ADULT SOCIAL CARE,Thames Reach,PRIVATE CONTRACTORS PAYMENT - OTHER," 30,140.15 ",Healthcare.Public Health.NA,Q4
22/03/2017,"NEIGHBOURHOODS, ENVIRONMENT & EMPLOYMENT",Veolia ES (UK) Ltd,WASTE DISPOSAL COSTS," 30,135.84 ",Environmental Services.Waste Management.NA,Q4
22/02/2017,CHILDREN'S SERVICES,Hempsall Consultancies Ltd,"PURCHASE - EQUIPMENT, FURNITURE AND MATERIALS"," 30,000.00 ",Domestic Goods.Commercial.NA,Q4
21/02/2017,FINANCE,Lambeth Voluntary Action Council,PRIVATE CONTRACTORS PAYMENT - OTHER," 30,000.00 ",Social Community Care Supplies & Service.Adult.Advice & Counselling Services,Q4
17/02/2017,"PLANNING, TRANSPORT & DEVELOPMENT",Sustrans Ltd,PURCHASE OF VEHICLES RELATED COSTS," 30,000.00 ",Vehicle Management.Cycles.NA,Q4
01/02/2017,BUSINESS TRANSFORMATION,Specialist Computer Centers Plc,ICT SOFTWARE," 29,958.33 ",Information Communication Technology.Software.NA,Q4
10/02/2017,"NEIGHBOURHOODS, ENVIRONMENT & EMPLOYMENT",F M Conway Ltd_d,"MAINTENANCE - EQUIPMENT, FURNITURE AND MATERIALS"," 29,866.33 ","Works - Construction, Repair & Maint.Roads.Repair & Maintenance",Q4
12/01/2017,FINANCE,The Portal Partnership Ltd,ICT SOFTWARE," 29,846.00 ",Information Communication Technology.Software.NA,Q4
11/01/2017,CAPITAL CC,Oco Ltd_d,BUILDING ALTERATIONS AND MATERIALS," 29,762.03 ",Building Construction Materials.Heating & Air Conditioning.NA,Q4
18/01/2017,CHILDREN'S SERVICES,Pact,ADOPTION ALLOWANCE - PRIVATE CONTRACTORS PAYMENT," 29,700.00 ",Social Community Care Supplies & Service.Children.Adoption Inter-Agency Fees,Q4
22/03/2017,BUSINESS & CUSTOMER SERVICES,Lancedrum Ltd,RENTS PAYABLE," 29,626.02 ",Financial Services.Rents.NA,Q4
22/03/2017,CHILDREN'S SERVICES,Saint Christopher's Fellowship,FOSTERING AGENCY PLACEMENTS - PRIVATE CONTRACTORS PAYMENT," 29,610.72 ",Social Community Care Supplies & Service.Children.Fostering,Q4
22/03/2017,ADULT SOCIAL CARE,Single Homeless Project,FLOATING SUPPORT SERVICES - PRIVATE CONTRACTORS PAYMENT," 29,589.04 ",Social Community Care Supplies & Service.Adult.Sheltered Accommodation,Q4
20/03/2017,"NEIGHBOURHOODS, ENVIRONMENT & EMPLOYMENT",PricewaterhouseCoopers LLP,AUDIT FEES," 29,558.00 ",Financial Services.Audit.NA,Q4
12/01/2017,FINANCE,Lambert Smith Hampton Group Ltd,CONSULTANCY FEES," 29,497.75 ",Consultancy.Technical & Feasibility.NA,Q4
11/01/2017,FINANCE,Energy Auditing Agency Ltd,CONSULTANCY FEES," 29,403.00 ",Consultancy.Business.NA,Q4
04/01/2017,BUSINESS TRANSFORMATION,Telefonica (UK) Ltd,MOBILE PHONE COSTS," 29,384.89 ",Information Communication Technology.Telecommunications.Mobile,Q4
17/02/2017,CHILDREN'S SERVICES,Fostercare UK Ltd,FOSTERING AGENCY PLACEMENTS - PRIVATE CONTRACTORS PAYMENT," 29,339.28 ",Social Community Care Supplies & Service.Children.Fostering,Q4
18/01/2017,BUSINESS TRANSFORMATION,XMA Ltd,ICT HARDWARE," 29,306.25 ",Information Communication Technology.Hardware.NA,Q4
03/03/2017,ADULT SOCIAL CARE,Allied Healthcare (UK) Ltd,DOMICILIARY CARE - THIRD PARTY," 29,205.60 ",Social Community Care Supplies & Service.Adult.Domiciliary Care,Q4
21/03/2017,ADULT SOCIAL CARE,Allied Healthcare (UK) Ltd,DOMICILIARY CARE - THIRD PARTY," 29,205.60 ",Social Community Care Supplies & Service.Adult.Domiciliary Care,Q4
27/01/2017,CAPITAL CC,F M Conway Ltd_d,"MAINTENANCE - EQUIPMENT, FURNITURE AND MATERIALS"," 29,163.24 ","Works - Construction, Repair & Maint.Roads.Construction",Q4
17/03/2017,CAPITAL CC,Oco Ltd_d,BUILDING ALTERATIONS AND MATERIALS," 28,838.06 ",Building Construction Materials.Heating & Air Conditioning.NA,Q4
22/03/2017,CHILDREN'S SERVICES,Holmdene Housing Ltd,RENTS PAYABLE," 28,748.57 ",Social Community Care Supplies & Service.Adult.Sheltered Accommodation,Q4
22/03/2017,CHILDREN'S SERVICES,National Fostering Agency,FOSTERING AGENCY PLACEMENTS - PRIVATE CONTRACTORS PAYMENT," 28,691.28 ",Social Community Care Supplies & Service.Children.Fostering,Q4
16/03/2017,CAPITAL CC,Pellings LLP,CONSULTANCY FEES," 28,676.29 ","Works - Construction, Repair & Maint.Consultancy.NA",Q4
22/02/2017,FINANCE,The Technology Forge Ltd,ICT SOFTWARE," 28,367.00 ",Information Communication Technology.Software.NA,Q4
27/02/2017,CAPITAL CC,F M Conway Ltd_d,OPEN SPACES WORKS," 28,343.20 ","Works - Construction, Repair & Maint.Open Spaces.NA",Q4
26/01/2017,"NEIGHBOURHOODS, ENVIRONMENT & EMPLOYMENT",London Councils,CONSULTANCY FEES," 28,184.00 ",Consultancy.Strategic Planning.NA,Q4
01/02/2017,BUSINESS TRANSFORMATION,Specialist Computer Centers Plc,ICT SOFTWARE," 28,138.05 ",Information Communication Technology.Software.NA,Q4
13/01/2017,"NEIGHBOURHOODS, ENVIRONMENT & EMPLOYMENT",Liberty Printers Ltd,PRINTING," 27,691.86 ",Facilities & Management Services.Printing.NA,Q4
22/02/2017,"NEIGHBOURHOODS, ENVIRONMENT & EMPLOYMENT",Western Riverside Waste Authority,WASTE DISPOSAL COSTS," 27,684.02 ",Environmental Services.Waste Management.NA,Q4
22/03/2017,BUSINESS & CUSTOMER SERVICES,Interserve Consulting_d,CONSULTANCY FEES," 27,525.44 ","Works - Construction, Repair & Maint.Consultancy.NA",Q4
19/01/2017,"STRATEGIC HOUSING, REGENERATION & COMMUNITIES","Change, Grow, Live (CGL)",STREET POPULATION SERVICES - PRIVATE CONTRACTORS PAYMENT," 27,435.08 ",Healthcare.Public Health.NA,Q4
16/02/2017,"STRATEGIC HOUSING, REGENERATION & COMMUNITIES","Change, Grow, Live (CGL)",STREET POPULATION SERVICES - PRIVATE CONTRACTORS PAYMENT," 27,435.08 ",Healthcare.Public Health.NA,Q4
18/01/2017,CHILDREN'S SERVICES,Inner Circle Recruitment,STAFF RECRUITMENT COSTS," 27,405.00 ",Human Resources.Recruitment & Assessment.NA,Q4
15/03/2017,"STRATEGIC HOUSING, REGENERATION & COMMUNITIES (HRA)",Blenheim Gardens TMO,PRIVATE CONTRACTORS PAYMENT - OTHER," 27,359.38 ",Housing Management.Arms Length Management Organisations.NA,Q4
15/03/2017,"STRATEGIC HOUSING, REGENERATION & COMMUNITIES (HRA)",Blenheim Gardens TMO,PRIVATE CONTRACTORS PAYMENT - OTHER," 27,359.38 ",Housing Management.Arms Length Management Organisations.NA,Q4
02/03/2017,CHILDREN'S SERVICES,Ownlife Ltd,RESIDENTIAL PLACEMENTS - PRIVATE CONTRACTORS PAYMENT," 27,300.00 ",Social Community Care Supplies & Service.Children.NA,Q4
22/03/2017,"NEIGHBOURHOODS, ENVIRONMENT & EMPLOYMENT",Western Riverside Waste Authority,WASTE DISPOSAL COSTS," 27,298.00 ",Environmental Services.Waste Management.NA,Q4
17/02/2017,CHILDREN'S SERVICES,Fostering for You,FOSTERING AGENCY PLACEMENTS - PRIVATE CONTRACTORS PAYMENT," 27,218.58 ",Social Community Care Supplies & Service.Children.Fostering,Q4
01/02/2017,"NEIGHBOURHOODS, ENVIRONMENT & EMPLOYMENT",Centre 70 Advice Centre,LEGAL FEES," 27,207.25 ",Legal Services.General Support.NA,Q4
14/03/2017,CAPITAL CC,Pinsent Masons LLP,PROFESSIONAL SERVICES - GENERAL," 27,173.00 ",Legal Services.General Support.NA,Q4
19/01/2017,"STRATEGIC HOUSING, REGENERATION & COMMUNITIES",Saint Mungo Association,PRIVATE CONTRACTORS PAYMENT - OTHER," 27,139.96 ","Social Community Care Supplies & Service.Adult.Temporary Accommodation, Hostels",Q4
16/02/2017,"STRATEGIC HOUSING, REGENERATION & COMMUNITIES",Saint Mungo Association,PRIVATE CONTRACTORS PAYMENT - OTHER," 27,139.96 ","Social Community Care Supplies & Service.Adult.Temporary Accommodation, Hostels",Q4
30/01/2017,"NEIGHBOURHOODS, ENVIRONMENT & EMPLOYMENT",F M Conway Ltd_d,"MAINTENANCE - EQUIPMENT, FURNITURE AND MATERIALS"," 27,039.50 ","Works - Construction, Repair & Maint.Roads.Repair & Maintenance",Q4
17/02/2017,CHILDREN'S SERVICES,Family Action,PRIVATE CONTRACTORS PAYMENT - OTHER," 27,000.00 ",Social Community Care Supplies & Service.Children.Childcare Services,Q4
15/02/2017,FINANCE,Grant Thornton,PROFESSIONAL SERVICES - GENERAL," 26,986.60 ",Financial Services.Accountancy.NA,Q4
15/02/2017,CAPITAL CC,Grant Thornton,PROFESSIONAL SERVICES - GENERAL," 26,986.60 ",Financial Services.Accountancy.NA,Q4
22/03/2017,CHILDREN'S SERVICES,Destiny House Ltd,RESIDENTIAL PLACEMENTS - PRIVATE CONTRACTORS PAYMENT," 26,965.58 ",Social Community Care Supplies & Service.Children.Residential Care,Q4
25/01/2017,CHILDREN'S SERVICES,Destiny House Ltd,RESIDENTIAL PLACEMENTS - PRIVATE CONTRACTORS PAYMENT," 26,965.57 ",Social Community Care Supplies & Service.Children.Residential Care,Q4
24/01/2017,ADULT SOCIAL CARE,CMG Homes Ltd,RESIDENTIAL PLACEMENTS - PRIVATE CONTRACTORS PAYMENT," 26,925.72 ",Social Community Care Supplies & Service.Adult.Residential Care,Q4
25/01/2017,CHILDREN'S SERVICES,Young Futures,RENTS PAYABLE," 26,807.14 ",Social Community Care Supplies & Service.Children.Residential Care,Q4
10/02/2017,CAPITAL CC,Specialist Computer Centers Plc,ICT HARDWARE," 26,800.00 ",Information Communication Technology.Hardware.NA,Q4
25/01/2017,ADULT SOCIAL CARE,Manon House,RESIDENTIAL PLACEMENTS - PRIVATE CONTRACTORS PAYMENT," 26,726.14 ",Social Community Care Supplies & Service.Adult.Residential Care,Q4
30/01/2017,"NEIGHBOURHOODS, ENVIRONMENT & EMPLOYMENT",F M Conway Ltd_d,"MAINTENANCE - EQUIPMENT, FURNITURE AND MATERIALS"," 26,720.72 ","Works - Construction, Repair & Maint.Roads.Repair & Maintenance",Q4
25/01/2017,"NEIGHBOURHOODS, ENVIRONMENT & EMPLOYMENT",Veolia ES (UK) Ltd,WASTE DISPOSAL COSTS," 26,658.14 ",Environmental Services.Waste Management.NA,Q4
28/02/2017,"NEIGHBOURHOODS, ENVIRONMENT & EMPLOYMENT",Veolia ES (UK) Ltd,WASTE DISPOSAL COSTS," 26,658.14 ",Environmental Services.Waste Management.NA,Q4
21/03/2017,"NEIGHBOURHOODS, ENVIRONMENT & EMPLOYMENT",Veolia ES (UK) Ltd,WASTE DISPOSAL COSTS," 26,658.14 ",Environmental Services.Waste Management.NA,Q4
15/02/2017,"NEIGHBOURHOODS, ENVIRONMENT & EMPLOYMENT",Liberty Printers Ltd,PRINTING," 26,632.38 ",Facilities & Management Services.Printing.NA,Q4
02/02/2017,CHILDREN'S SERVICES,Moving Matters London LTD,PRIVATE CONTRACTORS PAYMENT - OTHER," 26,618.00 ",Social Community Care Supplies & Service.Children.NA,Q4
06/02/2017,CORPORATE AFFAIRS,Lexis Nexis UK,LEGAL FEES," 26,604.23 ",Legal Services.General Support.NA,Q4
21/02/2017,NO RECOURSE TO PUBLIC FUNDS,RBGM Consulting Ltd,CONSULTANCY FEES," 26,550.00 ",Consultancy.Business.NA,Q4
25/01/2017,"NEIGHBOURHOODS, ENVIRONMENT & EMPLOYMENT",Veolia ES (UK) Ltd,REFUSE COLLECTION," 26,462.00 ",Environmental Services.Waste Management.Waste Collection,Q4
28/02/2017,"NEIGHBOURHOODS, ENVIRONMENT & EMPLOYMENT",Veolia ES (UK) Ltd,REFUSE COLLECTION," 26,462.00 ",Environmental Services.Waste Management.Waste Collection,Q4
21/03/2017,"NEIGHBOURHOODS, ENVIRONMENT & EMPLOYMENT",Veolia ES (UK) Ltd,REFUSE COLLECTION," 26,462.00 ",Environmental Services.Waste Management.Waste Collection,Q4
22/03/2017,STRATEGY & COMMISSIONING - CHILDREN,Young Lambeth Co-operative_d,PAYMENTS TO VOLUNTARY SECTOR," 26,366.00 ",Education.Educational Placements.NA,Q4
26/01/2017,PUBLIC HEALTH,Terence Higgins Enterprises,PAYMENT TO HEALTH AUTHORITIES," 26,343.50 ",Healthcare.Public Health.NA,Q4
22/03/2017,CAPITAL CC,inStreatham Ltd,CONSULTANCY FEES," 26,300.00 ",Consultancy.Business.NA,Q4
23/02/2017,CORPORATE AFFAIRS,Lexis Nexis UK,LEGAL FEES," 26,258.00 ",Legal Services.General Support.NA,Q4
25/01/2017,"NEIGHBOURHOODS, ENVIRONMENT & EMPLOYMENT",Veolia ES (UK) Ltd,WASTE DISPOSAL COSTS," 26,199.55 ",Environmental Services.Waste Management.NA,Q4
22/02/2017,"NEIGHBOURHOODS, ENVIRONMENT & EMPLOYMENT",Veolia ES (UK) Ltd,WASTE DISPOSAL COSTS," 26,199.55 ",Environmental Services.Waste Management.NA,Q4
21/03/2017,"NEIGHBOURHOODS, ENVIRONMENT & EMPLOYMENT",Veolia ES (UK) Ltd,WASTE DISPOSAL COSTS," 26,199.55 ",Environmental Services.Waste Management.NA,Q4
31/01/2017,"NEIGHBOURHOODS, ENVIRONMENT & EMPLOYMENT",F M Conway Ltd_d,"MAINTENANCE - EQUIPMENT, FURNITURE AND MATERIALS"," 26,139.27 ","Works - Construction, Repair & Maint.Roads.Repair & Maintenance",Q4
31/01/2017,"NEIGHBOURHOODS, ENVIRONMENT & EMPLOYMENT",F M Conway Ltd_d,"MAINTENANCE - EQUIPMENT, FURNITURE AND MATERIALS"," 26,139.27 ","Works - Construction, Repair & Maint.Roads.Repair & Maintenance",Q4
25/01/2017,ADULT SOCIAL CARE,Precious Homes Ltd,RESIDENTIAL PLACEMENTS - PRIVATE CONTRACTORS PAYMENT," 26,036.41 ",Social Community Care Supplies & Service.Adult.Residential Care,Q4
23/03/2017,ADULT SOCIAL CARE,Precious Homes Ltd,RESIDENTIAL PLACEMENTS - PRIVATE CONTRACTORS PAYMENT," 26,036.41 ",Social Community Care Supplies & Service.Adult.Residential Care,Q4
04/01/2017,BUSINESS TRANSFORMATION,Telefonica (UK) Ltd,MOBILE PHONE COSTS," 25,929.52 ",Information Communication Technology.Telecommunications.Mobile,Q4
04/01/2017,BUSINESS TRANSFORMATION,Telefonica (UK) Ltd,MOBILE PHONE COSTS," 25,859.37 ",Information Communication Technology.Telecommunications.Mobile,Q4
21/03/2017,"NEIGHBOURHOODS, ENVIRONMENT & EMPLOYMENT",Veolia ES (UK) Ltd,STREET SWEEPING," 25,856.46 ",Environmental Services.Street Cleansing.NA,Q4
03/03/2017,"STRATEGIC HOUSING, REGENERATION & COMMUNITIES",Women In Prison,PRIVATE CONTRACTORS PAYMENT - OTHER," 25,719.29 ",Social Community Care Supplies & Service.Adult.Advice & Counselling Services,Q4
22/03/2017,"NEIGHBOURHOODS, ENVIRONMENT & EMPLOYMENT",Liberty Printers Ltd,PRINTING," 25,690.71 ",Facilities & Management Services.Printing.NA,Q4
22/03/2017,ADULT SOCIAL CARE,The Avenues Trust,SUPPORTED OTHER ACCOMMODATION - PRIVATE CONTRACTORS PAYMENT," 25,538.76 ",Social Community Care Supplies & Service.Adult.Sheltered Accommodation,Q4
10/03/2017,PUBLIC HEALTH,South London & Maudsley (nhs) Trust,PAYMENT TO HEALTH AUTHORITIES," 25,500.00 ",Healthcare.Public Health.NA,Q4
23/02/2017,"NEIGHBOURHOODS, ENVIRONMENT & EMPLOYMENT",CVU_d,"MAINTENANCE - EQUIPMENT, FURNITURE AND MATERIALS"," 25,460.26 ","Works - Construction, Repair & Maint.Roads.Construction",Q4
14/03/2017,CAPITAL CC,Mitie Property Services (UK) Ltd_d,"MAINTENANCE - EQUIPMENT, FURNITURE AND MATERIALS"," 25,405.35 ","Works - Construction, Repair & Maint.Buildings.Construction",Q4
27/01/2017,"NEIGHBOURHOODS, ENVIRONMENT & EMPLOYMENT",F M Conway Ltd_d,"MAINTENANCE - EQUIPMENT, FURNITURE AND MATERIALS"," 25,353.90 ","Works - Construction, Repair & Maint.Roads.Repair & Maintenance",Q4
31/01/2017,"NEIGHBOURHOODS, ENVIRONMENT & EMPLOYMENT",Apcoa Parking Services (Uk) Ltd,"PURCHASE - EQUIPMENT, FURNITURE AND MATERIALS"," 25,332.05 ",Street & Traffic Management.Parking.NA,Q4
21/02/2017,HOUSING SERVICES (HRA),Mears Ltd,FACILITIES MANAGEMENT," 25,318.74 ","Works - Construction, Repair & Maint.Buildings.Repair & Maintenance",Q4
23/01/2017,"STRATEGIC HOUSING, REGENERATION & COMMUNITIES (HRA)",Regenter Myatts Field North Ltd,"MAINTENANCE - EQUIPMENT, FURNITURE AND MATERIALS"," 25,277.15 ","Works - Construction, Repair & Maint.Buildings.Construction",Q4
30/01/2017,"NEIGHBOURHOODS, ENVIRONMENT & EMPLOYMENT",F M Conway Ltd_d,"MAINTENANCE - EQUIPMENT, FURNITURE AND MATERIALS"," 25,217.47 ","Works - Construction, Repair & Maint.Roads.Repair & Maintenance",Q4
23/02/2017,HOUSING SERVICES (HRA),Precision Lift Services Ltd_d,RESPONSIVE REPAIRS - MECHANICAL AND ELECTRICAL," 25,208.23 ",Facilities & Management Services.Lifts.New Installation,Q4
09/03/2017,HOUSING SERVICES (HRA),Precision Lift Services Ltd_d,RESPONSIVE REPAIRS - MECHANICAL AND ELECTRICAL," 25,208.23 ",Facilities & Management Services.Lifts.New Installation,Q4
03/03/2017,HOUSING SERVICES (HRA),Mears Ltd,FACILITIES MANAGEMENT," 25,155.84 ","Works - Construction, Repair & Maint.Buildings.Repair & Maintenance",Q4
22/03/2017,HOUSING SERVICES (HRA),Mears Ltd,FACILITIES MANAGEMENT," 25,155.84 ","Works - Construction, Repair & Maint.Buildings.Repair & Maintenance",Q4
30/01/2017,"NEIGHBOURHOODS, ENVIRONMENT & EMPLOYMENT",Furnace Managed Services Ltd,BEREAVEMENT SERVICES EQUIPMENT," 25,080.00 ",Cemetery & Crematorium.Equipment.NA,Q4
03/03/2017,"NEIGHBOURHOODS, ENVIRONMENT & EMPLOYMENT",Furnace Managed Services Ltd,BEREAVEMENT SERVICES EQUIPMENT," 25,080.00 ",Cemetery & Crematorium.Equipment.NA,Q4
09/03/2017,"NEIGHBOURHOODS, ENVIRONMENT & EMPLOYMENT",Furnace Managed Services Ltd,BEREAVEMENT SERVICES EQUIPMENT," 25,080.00 ",Cemetery & Crematorium.Equipment.NA,Q4
21/02/2017,FINANCE,DWF LLP,CONSULTANCY FEES," 25,000.00 ",Consultancy.Business.NA,Q4
17/01/2017,CHILDREN'S SERVICES,Oval House Theatre,ARTS AND LEISURE COSTS," 25,000.00 ",Social Community Care Supplies & Service.Children.NA,Q4
01/02/2017,HOUSING SERVICES (HRA),St Mungo's,PRIVATE CONTRACTORS PAYMENT - OTHER," 24,919.75 ",Housing Management.Tenants Associations.NA,Q4
15/03/2017,HOUSING SERVICES (HRA),St Mungo's,PRIVATE CONTRACTORS PAYMENT - OTHER," 24,919.75 ",Social Community Care Supplies & Service.Adult.Advice & Counselling Services,Q4
15/03/2017,HOUSING SERVICES (HRA),St Mungo's,PRIVATE CONTRACTORS PAYMENT - OTHER," 24,919.75 ",Social Community Care Supplies & Service.Adult.Advice & Counselling Services,Q4
23/01/2017,CAPITAL CC,F M Conway Ltd_d,OPEN SPACES WORKS," 24,901.09 ","Works - Construction, Repair & Maint.Open Spaces.NA",Q4
23/01/2017,CAPITAL CC,F M Conway Ltd_d,OPEN SPACES WORKS," 24,901.09 ","Works - Construction, Repair & Maint.Open Spaces.NA",Q4
16/03/2017,ADULT SOCIAL CARE,Sanctuary Care Ltd,DOMICILIARY CARE - THIRD PARTY," 24,892.62 ",Social Community Care Supplies & Service.Adult.Residential Care,Q4
16/03/2017,CAPITAL CC,Pellings LLP,CONSULTANCY FEES," 24,837.50 ","Works - Construction, Repair & Maint.Consultancy.NA",Q4
12/01/2017,"NEIGHBOURHOODS, ENVIRONMENT & EMPLOYMENT",Brixton Advice Centre,PRIVATE CONTRACTORS PAYMENT - OTHER," 24,807.25 ",Social Community Care Supplies & Service.Adult.Advice & Counselling Services,Q4
12/01/2017,"NEIGHBOURHOODS, ENVIRONMENT & EMPLOYMENT",Contender Systems Ltd,ICT SOFTWARE," 24,800.00 ",Information Communication Technology.Software.NA,Q4
22/03/2017,"NEIGHBOURHOODS, ENVIRONMENT & EMPLOYMENT",London Wildlife Trust,ARTS AND LEISURE COSTS," 24,774.00 ",Arts & Leisure Services.Organised Activities.NA,Q4
01/02/2017,"NEIGHBOURHOODS, ENVIRONMENT & EMPLOYMENT",PAYE Stonework & Restoration Ltd,"MAINTENANCE - EQUIPMENT, FURNITURE AND MATERIALS"," 24,768.80 ","Works - Construction, Repair & Maint.Architect.NA",Q4
24/01/2017,"STRATEGIC HOUSING, REGENERATION & COMMUNITIES (HRA)",Sheffield Hallam University,CONSULTANCY FEES," 24,750.00 ",Consultancy.Business.NA,Q4
14/02/2017,PUBLIC HEALTH,The Metro Centre Ltd,PAYMENT TO HEALTH AUTHORITIES," 24,750.00 ",Healthcare.Public Health.NA,Q4
17/02/2017,PUBLIC HEALTH,The Metro Centre Ltd,PAYMENT TO HEALTH AUTHORITIES," 24,750.00 ",Healthcare.Public Health.NA,Q4
01/02/2017,BUSINESS TRANSFORMATION,Specialist Computer Centers Plc,ICT SOFTWARE," 24,726.38 ",Information Communication Technology.Software.NA,Q4
22/03/2017,CORPORATE ITEMS,Inform CPI Ltd,CONSULTANCY FEES," 24,562.50 ",Information Communication Technology.Services.Consultancy,Q4
16/01/2017,"STRATEGIC HOUSING, REGENERATION & COMMUNITIES (HRA)",Blenheim Gardens TMO,PRIVATE CONTRACTORS PAYMENT - OTHER," 24,498.66 ",Housing Management.Arms Length Management Organisations.NA,Q4
22/03/2017,ADULT SOCIAL CARE,Centrepoint Soho Ltd,PRIVATE CONTRACTORS PAYMENT - OTHER," 24,410.96 ",Social Community Care Supplies & Service.Adult.Sheltered Accommodation,Q4
22/02/2017,CHILDREN'S SERVICES,Destiny House Ltd,RESIDENTIAL PLACEMENTS - PRIVATE CONTRACTORS PAYMENT," 24,356.00 ",Social Community Care Supplies & Service.Children.Residential Care,Q4
22/03/2017,BUSINESS TRANSFORMATION,Specialist Computer Centers Plc,ICT SOFTWARE," 24,074.17 ",Information Communication Technology.Software.NA,Q4
22/03/2017,CORPORATE ITEMS,Inform CPI Ltd,CONSULTANCY FEES," 24,000.00 ",Information Communication Technology.Services.Consultancy,Q4
07/03/2017,HOUSING SERVICES (HRA),Prime Solicitors,LEGAL FEES," 24,000.00 ",Legal Services.Legal Opinion.NA,Q4
17/03/2017,CAPITAL CC,Airey Miller Ltd_d,CONSULTANCY FEES," 23,950.00 ","Works - Construction, Repair & Maint.Consultancy.NA",Q4
